Cogmind - Beta 13 *** ADVENTURER MODE // 2024.05.14 @ 01:54:38 // Winter2019/RPGLIKE Player: Big Tortoise Result: Establishing Free Derelict Territories! Performance ------------- Evolutions (9) 4500 Regions Visited (26) 5200 Robots Destroyed (546) 2730 Value Destroyed (36282) 36282 Prototype IDs (111) 2220 Alien Tech Used (12) 2400 Bonus (55738) 55738 TOTAL SCORE: 109070 Bonus ------- Triggered Max Security 1000 High Alert Combat Kills 8660 Follower Combat Kills 2073 Entered Garrisons 600 Used RIF Installer 1500 Network Hubs Disabled 800 Acquired ECA 300 Met Warlord at Base 500 MAIN.C Attacked Warlord 500 Warlord Defense Kills 8478 A7 Reached Mainframe 300 Met R17 at Cetus 500 Met R17 at Research 2000 Met Warlord at Research 2000 Scanned by Researcher 500 Pursued by Intercept 1000 Destroyed MAIN.C Guards 500 Met MAIN.C 5000 Hacked MAIN.C 300 Destroyed MAIN.C Shell 5000 Destroyed MAIN.C 10000 Met Warlord at Command 2000 Win 3000 Friendly Fire -773 Cogmind --------- Core Integrity 973/1300 Matter 184/400 Energy 1409/1409 System Corruption 0% Temperature Cool (0) Movement Hovering (93) Location Free Derelict Territories Parts ------- > --- POWER (3) -------- Multi-Quantum Reactor > --- PROPULSION (5) --- Hovering Cooled-Antigrav Exoskeleton > --- UTILITY (12) ----- Armored Scrap Engine Advanced Signal Interpreter Experimental Target Analyzer Experimental Core Analyzer Particle Accelerator Heavy Servo Lattice Improved Phase Shifter Advanced Powered Armor Graphene Brace AEGIS Remote Shield Advanced Hacking Suite > --- WEAPON (6) ------- KE Penetrator Hvy. Thermal Potential Construct/C Hpw. Ballistic Linear Construct/C Hpw. Ballistic Autogun Construct/G Hpw. Kinetic Construct/C > --- INVENTORY (6) ---- Improved Terrain Scanner Improved System Restoration Module Integrity Redistributor Advanced Remote Datajack Peak State ------------ > --- POWER ------------ Multi-Quantum Reactor > --- PROPULSION ------- Hovering Cooled-Antigrav Exoskeleton > --- UTILITY ---------- Armored Scrap Engine Advanced Signal Interpreter Experimental Target Analyzer Experimental Core Analyzer Particle Accelerator Heavy Servo Lattice Improved Phase Shifter Advanced Powered Armor Graphene Brace Experimental Force Field Advanced Hacking Suite > --- WEAPON ----------- Advanced Remote Datajack Hvy. Thermal Potential Construct/C Hpw. Ballistic Linear Construct/C Hpw. Ballistic Autogun Construct/G Hpw. Kinetic Construct/C > --- INVENTORY -------- Improved Terrain Scanner Relay Coupler [NC] Improved System Restoration Module Integrity Redistributor [Rating: 220] Favorites ----------- Power Constructs Engine Ion Engine Power Core Light Nuclear Core Reactor Constructs Propulsion Constructs Treads Improved Treads Wheel Wheel Hover Unit Constructs Utility Armored Scrap Engine Device Armored Scrap Engine Storage Improved Energy Well Processor Advanced Signal Interpreter Hackware Improved Hacking Suite Protection Gun Armor Artifact Microwarp Drive Weapon Constructs Energy Gun Medium Laser Energy Cannon Constructs Ballistic Gun Constructs Ballistic Cannon Constructs Launcher Thermoblaster Special Weapon Advanced Remote Datajack Piercing Weapon Plasma Lance Build | -11 -10 -10 -10 -7 -5 -5 -5 -5 -5 -5 -4 -4 -4 -4 -4 -4 -4 -4 -3 -3 -2 -2 -2 -2 -1 -1 ------- Run | Yrd Mat Min Sub Rec Fac Gar Fac Upp Upp War Pro Fac Gar Fac Ext Cet Arc Hub Res Qua Res Tes Sec Gar Acc Com Slots Evolved 22 | 3 . 2 . 4 5 . 1 . 1 . . . 1 . . . . . 1 . 1 . . . 2 1 Power 2 | . . . . . 2 . . . . . . . . . . . . . . . . . . . . . Propulsion 4 | 1 . . . 1 1 . 1 . . . . . . . . . . . . . . . . . . . Utility 11 | 1 . 1 . 3 1 . . . 1 . . . 1 . . . . . 1 . . . . . 2 . Weapon 5 | 1 . 1 . . 1 . . . . . . . . . . . . . . . 1 . . . . 1 Parts Attached 166 | 6 3 2 11 3 1 2 8 . 1 8 1 4 3 4 . 1 2 4 3 6 3 19 30 4 20 17 Power 2 | 1 . . 1 . . . . . . . . . . . . . . . . . . . . . . . Engine 1 | 1 . . . . . . . . . . . . . . . . . . . . . . . . . . Core 1 | . . . 1 . . . . . . . . . . . . . . . . . . . . . . . Reactor . | . . . . . . . . . . . . . . . . . . . . . . . . . . . Propulsion 3 | 2 1 . . . . . . . . . . . . . . . . . . . . . . . . . Treads 2 | 1 1 . . . . . . . . . . . . . . . . . . . . . . . . . Leg . | . . . . . . . . . . . . . . . . . . . . . . . . . . . Wheel 1 | 1 . . . . . . . . . . . . . . . . . . . . . . . . . . Hover . | . . . . . . . . . . . . . . . . . . . . . . . . . . . Flight . | . . . . . . . . . . . . . . . . . . . . . . . . . . . Utility 136 | 1 2 2 . 3 1 2 8 . 1 8 1 1 2 4 . 1 2 4 3 6 2 19 30 4 20 9 Device 109 | 1 . 2 . 1 . 1 5 . 1 5 1 1 2 4 . 1 2 3 3 6 2 16 23 4 17 8 Storage 3 | . . . . . . . 2 . . . . . . . . . . . . . . 1 . . . . Processor 8 | . 2 . . . 1 . . . . 3 . . . . . . . 1 . . . . 1 . . . Hackware 6 | . . . . 1 . 1 1 . . . . . . . . . . . . . . . 1 . 1 1 Protection 8 | . . . . 1 . . . . . . . . . . . . . . . . . 2 3 . 2 . Artifact 2 | . . . . . . . . . . . . . . . . . . . . . . . 2 . . . Weapon 25 | 2 . . 10 . . . . . . . . 3 1 . . . . . . . 1 . . . . 8 Energy Gun 2 | 1 . . 1 . . . . . . . . . . . . . . . . . . . . . . . Energy Cannon 1 | . . . 1 . . . . . . . . . . . . . . . . . . . . . . . Ballistic Gun 12 | 1 . . 6 . . . . . . . . . . . . . . . . . 1 . . . . 4 Ballistic Cannon 1 | . . . 1 . . . . . . . . . . . . . . . . . . . . . . . Launcher 2 | . . . . . . . . . . . . 1 1 . . . . . . . . . . . . . Special Weapon 6 | . . . 1 . . . . . . . . 1 . . . . . . . . . . . . . 4 Impact Weapon . | . . . . . . . . . . . . . . . . . . . . . . . . . . . Slashing Weapon . | . . . . . . . . . . . . . . . . . . . . . . . . . . . Piercing Weapon 1 | . . . . . . . . . . . . 1 . . . . . . . . . . . . . . Special Melee Weapon . | . . . . . . . . . . . . . . . . . . . . . . . . . . . Unidentified Prototypes 28 | . . 1 . . . . 2 . . 4 . 1 . 1 . . . . . 1 2 5 9 . 1 1 Corrupted Parts 1 | . . . . 1 . . . . . . . . . . . . . . . . . . . . . . System Corruption 3 | . . . . 3 . . . . . . . . . . . . . . . . . . . . . . Parts Lost . | . . . . . . . . . . . . . . . . . . . . . . . . . . . Power . | . . . . . . . . . . . . . . . . . . . . . . . . . . . Propulsion . | . . . . . . . . . . . . . . . . . . . . . . . . . . . Utility . | . . . . . . . . . . . . . . . . . . . . . . . . . . . Weapon . | . . . . . . . . . . . . . . . . . . . . . . . . . . . Highest Loss Streak . | . . . . . . . . . . . . . . . . . . . . . . . . . . . To Critical Strikes . | . . . . . . . . . . . . . . . . . . . . . . . . . . . Average Slot Usage (%) 69 | . 97 94 99 65 61 68 62 55 56 56 57 55 60 61 59 59 61 60 62 62 61 64 64 65 66 68 Engine 2 | . 14 12 6 . 9 6 4 5 2 . . . . . . . . . . . . . . . . . Reactor 2 | . . . . . . 1 . . 1 4 4 4 4 4 4 4 4 4 4 4 4 4 4 4 4 3 Treads 2 | . 14 12 11 3 . . . . . . . . . . . . . . . . . . . . . . Leg 1 | . . . . 1 3 . . . . . . . . . . . . . . 1 4 4 4 4 4 1 Wheel 2 | . 14 12 11 4 . . . . . . . . . . . . . . . . . . . . . . Hover 1 | . . . . . 1 5 5 5 4 4 4 4 4 4 4 4 4 4 4 2 . . . . . 2 Device 19 | . 14 19 22 20 15 10 14 15 18 17 14 18 22 23 23 23 23 22 26 26 25 24 19 17 20 23 Processor 8 | . 12 12 11 6 4 5 5 5 4 5 9 9 9 9 9 9 9 9 9 9 8 8 9 13 12 11 Hackware 3 | . . . . . 5 9 5 5 4 4 4 4 4 4 4 4 4 4 4 4 4 4 4 4 4 3 Protection 2 | . . . . 5 5 5 5 5 4 4 4 . . . . . . . . . . 1 3 4 4 3 Energy Gun 1 | . 14 12 2 3 . 1 2 . . . . . . . . . . . . . . . . . . . Energy Cannon 3 | . . . . . 11 12 2 . . 2 . . . . . . . 2 6 4 4 6 6 4 4 3 Ballistic Gun 5 | . 14 12 20 8 3 . . . . 4 4 4 . . 1 6 9 7 3 3 . 1 1 4 4 4 Ballistic Cannon 6 | . . . 9 2 . 6 12 15 13 6 9 5 8 9 6 4 4 3 2 4 8 8 8 8 8 7 Naked Turns . | . . . . . . . . . . . . . . . . . . . . . . . . . . . Heaviest Build 126 | 10 10 11 15 24 55 65 65 65 64 81 72 64 66 67 61 60 76 104 124 124 109 110 126 111 115 124 Greatest Support 149 | 25 15 15 15 50 91 71 83 83 83 88 121 121 121 118 79 72 72 86 86 139 139 139 149 149 149 149 Greatest Overweight (x) 1 | . . . . 1 . . . . . . . . . . . . 1 1 1 1 . . . . . . Average Overweight (x) . | . . . . . . . . . . . . . . . . . . . . . . . . . . . Largest Inventory Capacity 6 | . 3 3 3 3 3 4 4 4 4 4 4 4 5 5 5 5 5 5 5 6 6 6 6 6 6 6 Average Capacity 4 | . . 3 3 3 3 3 4 4 4 4 4 4 4 5 5 5 5 5 5 5 6 6 6 6 6 6 Most Carried 6 | . 2 3 3 3 3 3 4 4 4 4 2 3 3 5 5 5 5 5 5 6 6 6 6 6 6 5 Average Carried 3 | . . 2 2 2 2 3 3 3 3 3 2 1 2 3 4 5 4 4 4 4 6 5 4 5 5 4 Final Capacity 6 | . 3 3 3 3 3 4 4 4 4 4 4 4 5 5 5 5 5 5 5 6 6 6 6 6 6 6 Final Carried 6 | . 2 2 2 2 3 3 3 4 3 2 2 3 3 4 5 5 5 5 5 6 6 5 5 6 5 4 Scrap Engine Consumption 347 | . . . . 31 19 23 25 6 7 50 . 21 10 2 14 14 4 11 38 17 7 19 11 2 11 5 Constructs Created 8 | . . . . 4 2 . . . . . . . . . . 1 . . . . 1 . . . . . Constructs Modified 125 | . . . . 4 9 9 11 2 4 13 6 3 4 4 5 3 3 6 14 8 2 7 5 . 2 1 Class Distribution -------------------- 78% | Hacker-Construct 20% | Hacker-Skirmisher Dominant Class ---------------- Hacker-Skirmisher | -10/Materials Hacker-Skirmisher | -10/Mines Hacker-Skirmisher | -10/Subcaves Hacker-Skirmisher | -7/Recycling Hacker-Construct | -5/Factory Hacker-Construct | -5/Garrison Hacker-Construct | -5/Factory Hacker-Construct | -5/Upper Caves Hacker-Construct | -5/Upper Caves Hacker-Construct | -5/Warlord Hacker-Construct | -4/Proximity Caves Hacker-Construct | -4/Factory Hacker-Construct | -4/Garrison Hacker-Construct | -4/Factory Hacker-Construct | -4/Extension Hacker-Construct | -4/Cetus Hacker-Construct | -4/Archives Hacker-Construct | -4/Hub_04(d) Hacker-Construct | -3/Research Hacker-Construct | -3/Quarantine Hacker-Construct | -2/Research Hacker-Construct | -2/Testing Hacker-Construct | -2/Section 7 Hacker-Construct | -2/Garrison Hacker-Construct | -1/Access Hacker-Construct | -1/Command Resources | -11 -10 -10 -10 -7 -5 -5 -5 -5 -5 -5 -4 -4 -4 -4 -4 -4 -4 -4 -3 -3 -2 -2 -2 -2 -1 -1 ----------- Run | Yrd Mat Min Sub Rec Fac Gar Fac Upp Upp War Pro Fac Gar Fac Ext Cet Arc Hub Res Qua Res Tes Sec Gar Acc Com Matter Collected 8084 | 322 198 98 520 56 84 20 80 . 10 670 113 432 458 . 365 168 85 207 203 363 103 681 1082 198 767 801 Remotely . | . . . . . . . . . . . . . . . . . . . . . . . . . . . Salvage Created 30205 | 56 791 303 101 . 798 1338 2081 563 89 3538 355 2104 1206 113 1691 355 650 708 1128 1825 474 801 2937 875 3680 1645 Parts 1478 | 6 44 20 22 2 30 53 94 27 3 144 20 91 70 2 68 25 39 56 51 85 21 60 163 45 159 78 Haulers Intercepted 11 | . 1 . . . . . 1 . . . . 2 . . . . . . 3 . 2 1 1 . . . Recyclers Shooed 3 | . 1 . . . . . . . . . . . . . 1 . . . . . . . . . . 1 Parts Field Recycled . | . . . . . . . . . . . . . . . . . . . . . . . . . . . Retrieved Matter . | . . . . . . . . . . . . . . . . . . . . . . . . . . . Parts Self-Destructed 64 | . . . 15 . . . . 26 3 . 20 . . . . . . . . . . . . . . . Prevented . | . . . . . . . . . . . . . . . . . . . . . . . . . . . Kills | -11 -10 -10 -10 -7 -5 -5 -5 -5 -5 -5 -4 -4 -4 -4 -4 -4 -4 -4 -3 -3 -2 -2 -2 -2 -1 -1 ------- Run | Yrd Mat Min Sub Rec Fac Gar Fac Upp Upp War Pro Fac Gar Fac Ext Cet Arc Hub Res Qua Res Tes Sec Gar Acc Com Combat Hostiles Destroyed 460 | . 15 12 10 2 10 24 27 8 1 63 8 22 30 1 22 6 3 11 17 19 5 8 44 14 53 25 Melee 1 | . . . . . . . . . . . . 1 . . . . . . . . . . . . . . Guns 73 | . 14 12 4 2 . . 2 . . 10 . 5 . . . 1 2 3 2 5 . . . 3 5 3 Cannons 351 | . . . 6 . 9 18 23 8 1 48 8 16 18 1 16 5 1 8 14 13 5 8 44 11 48 22 AOE 27 | . 1 . . . . . 2 . . 5 . . 12 . 6 . . . . 1 . . . . . . Classes Destroyed 31 | 1 6 1 2 . 2 1 4 . . 5 1 1 1 . . . . 1 . 1 . 2 1 . . 1 Worker 14 | . 2 . . . . . 3 . . . . 1 . . 2 . . 1 . 3 . . 1 . . 1 Builder 3 | . . . . . . . . . . . . . . . . . . 1 . 1 . . . . 1 . Tunneler 2 | 2 . . . . . . . . . . . . . . . . . . . . . . . . . . Hauler 11 | . 1 . . . . . 1 . . . . 2 . . . . . . 3 . 2 1 1 . . . Recycler 13 | . 2 . . . . . 3 . . . . 3 . . 2 . . 2 . . . . . . 1 . Carrier 2 | . . . . . . . . . . . . . 1 . . . . . . . . . . . 1 . Mechanic 4 | . . . . . . . 1 . . 1 . . . . . . . . . 1 . . . . . 1 Operator 12 | . . . . . . . 1 . . . . . . . 1 . 8 . . 1 . 1 . . . . Drone 1 | . . . . . . . . . . . 1 . . . . . . . . . . . . . . . Watcher 17 | . 3 . . . . . 2 . . . . 1 . . . 1 . 2 . 3 . 2 2 . . 1 Swarmer 64 | . 6 7 . . . . . . . 1 2 4 11 . . . . . 10 . . . 5 5 8 5 Saboteur 4 | . . . . . . . . . . 1 . 1 . . . . . . . . . . . . 1 1 Grunt 156 | . 9 4 1 . 3 14 13 4 . 24 3 8 5 . 13 . . . 1 14 2 . 8 4 20 6 Brawler 9 | . . . . . . 1 . 1 . 3 1 . . . . . . . . . . . . . 3 . Duelist 6 | . . . . . . . 2 . . 3 . . . . . . . . . . . . . . . 1 Protector 5 | . . . . . . . 1 . . 4 . . . . . . . . . . . . . . . . Researcher 8 | . . . . . . . . . . . . . . . . . . . . 4 . 2 2 . . . Sentry 62 | . . . 1 2 1 6 3 1 . . 1 2 6 . 6 . 3 4 2 3 3 . 9 2 2 5 Demolisher 2 | . . . . . . . . . . 2 . . . . . . . . . . . . . . . . Specialist 1 | . . . . . . . . . . . . . . . . . . . . . . 1 . . . . Hunter 43 | . . . . . 2 3 5 2 1 2 . 4 4 1 . . . 5 2 2 . . 4 2 4 . Programmer 49 | . . . . . 4 . 3 . . 12 . 2 3 . . . . . . . . 6 9 . 6 4 Heavy 3 | . . . . . . . . . . . . 1 . . . . . 1 . . . . 1 . . . Behemoth 11 | . . . . . . . . . . 3 . . 1 . 2 . . 1 2 . . . 1 1 . . Cetus Guard 6 | . . . . . . . . . . . . . . . . 6 . . . . . . . . . . S7 Guard 1 | . . . . . . . . . . . . . . . . . . . . . . . 1 . . . M Guard 1 | . . . . . . . . . . . . . . . . . . . . . . . . . . 1 Tracker 6 | . . . . . . . . . . . . . . . . . . . . . . . 2 . 4 . Combat Programmer 6 | . . . . . . . . . . . . . . . . . . . . . . . . . 5 1 Striker 1 | . . . . . . . . . . 1 . . . . . . . . . . . . . . . . Executioner 9 | . . . . . . . . . . 7 . . . . . . . . . . . . 2 . . . Alpha 7 2 | . . . . . . . . . . . . . . . . . . . . . . . 2 . . . Fortress 1 | . . . . . . . . . . . . . . . . . . . . . . 1 . . . . Subdweller 8 | . . . 8 . . . . . . . . . . . . . . . . . . . . . . . Assembled 1 | . . 1 . . . . . . . . . . . . . . . . . . . . . . . . Butcher 2 | . . . . . . . . . . . . . . . 1 . . 1 . . . . . . . . Troll 1 | . . . . . . . . . . . . . . . . . . . . . . . . . . 1 Best Kill Streak 15 | 2 5 4 2 1 3 9 15 4 1 11 7 8 14 1 8 4 11 4 7 13 5 2 11 5 10 5 Combat Bots Only 14 | . 5 4 2 1 3 9 8 4 1 11 7 7 14 1 5 4 3 2 6 6 4 2 10 5 9 4 Max Kills in Single Turn 6 | 1 2 1 1 1 1 2 4 1 1 6 2 2 4 1 3 1 1 2 2 6 2 1 3 3 3 3 Gunslinging 1 | . . . . . . . . . . . . . . . . . . . . 1 . . . 1 1 1 Exploded 5 | . 1 . . . . . 2 . . 5 . . 3 . 1 . . . . 1 . . . . . . Melee 1 | . . . . . . . . . . . . 1 . . . . . . . . . . . . . . Uniques/NPCs Destroyed . | . . . . . . . . . . . . . . . . . . . . . . . . . . . Combat | -11 -10 -10 -10 -7 -5 -5 -5 -5 -5 -5 -4 -4 -4 -4 -4 -4 -4 -4 -3 -3 -2 -2 -2 -2 -1 -1 -------- Run | Yrd Mat Min Sub Rec Fac Gar Fac Upp Upp War Pro Fac Gar Fac Ext Cet Arc Hub Res Qua Res Tes Sec Gar Acc Com Hostile Shots Fired 1703 | . 55 40 34 45 53 70 54 15 6 88 13 44 125 5 47 18 . 47 38 58 9 86 300 57 264 132 Missed 725 | . 13 9 11 22 22 21 20 9 5 40 5 24 63 2 21 9 . 21 17 32 5 38 134 30 90 62 Damage Taken 11010 | . 433 217 472 107 365 668 383 77 14 1109 97 351 648 28 401 160 . 551 258 143 32 658 1261 204 1214 1159 Core 8132 | . 352 169 371 75 270 513 296 58 11 843 74 286 508 24 322 128 . 448 193 109 24 480 849 130 773 826 Absorbed by Shields 5616 | . . . . . . . . . . . . . 37 . . . . 410 271 156 33 688 1332 217 1287 1185 Redirected to Core 7079 | . 266 139 320 72 216 433 248 58 11 806 74 232 466 15 276 110 . 345 187 85 24 445 719 118 689 725 Ignored by Resistances 8542 | . 126 79 162 78 194 395 207 46 9 488 67 217 431 19 248 98 . 378 244 219 44 753 1508 245 1344 943 Regen/Repaired (Parts) 375 | . . . . 2 16 83 34 9 3 45 37 14 18 . 18 . . 3 47 2 . 8 3 2 15 16 Core Remaining (%) 89 | 100 . . . 100 . . . . . . 100 . . . . . . 71 . 80 . . . 100 . 74 Volleys Fired 924 | 4 56 26 52 7 20 54 42 11 5 72 7 41 57 5 28 13 16 31 25 35 8 54 82 22 73 78 Largest 5 | 2 2 2 3 3 4 4 4 3 3 3 3 3 3 3 3 3 3 3 3 3 3 4 4 4 4 5 Hottest 437 | 70 70 70 170 109 322 322 322 246 246 277 250 437 383 383 383 191 191 294 206 138 138 201 243 243 243 276 Shots Fired 2547 | 8 110 52 126 17 55 181 117 28 13 194 21 90 107 11 72 32 27 87 75 84 23 169 281 69 256 242 Gun 716 | 8 110 52 80 14 18 9 12 . . 64 7 40 . . 6 19 11 50 23 21 . 9 10 16 66 71 Cannon 1754 | . . . 42 3 37 172 105 28 13 130 14 48 81 10 49 13 16 37 52 63 23 160 271 53 190 144 Launcher 46 | . . . . . . . . . . . . 2 26 1 17 . . . . . . . . . . . Special 31 | . . . 4 . . . . . . . . . . . . . . . . . . . . . . 27 Kinetic 1458 | 4 56 26 102 17 18 9 87 28 13 136 21 88 81 10 55 32 27 43 11 24 7 56 109 47 187 164 Thermal 935 | 4 54 26 24 . 37 172 30 . . . . 2 26 1 17 . . 44 64 60 16 98 118 22 69 51 Explosive . | . . . . . . . . . . . . . . . . . . . . . . . . . . . Electromagnetic 69 | . . . . . . . . . . . . . . . . . . . . . . 15 54 . . . Entropic 58 | . . . . . . . . . . 58 . . . . . . . . . . . . . . . . Robot Hit Streak 114 | 3 14 19 26 48 87 54 77 25 11 26 34 45 67 10 40 20 15 24 68 89 30 114 59 16 38 41 Robot Miss Streak 2 | 2 1 2 2 . 1 1 1 1 1 2 . 2 1 . 1 2 1 1 . 2 1 1 2 1 2 2 Penetration Max 2 | . . . . . 1 . 1 . . 2 1 1 . . 2 1 . . . 1 . . 1 1 1 1 Secondary Targets 55 | . 3 2 . . . . . . . . . . . . . . . . 2 6 1 . 12 3 19 7 Max Gunslinging Chain 2 | . 1 1 . . . . . . . . . . . . . . . . 2 1 1 . 2 2 2 2 Shots Hit Robots 1644 | 5 81 42 77 14 44 100 78 18 5 127 11 64 66 7 43 23 21 38 44 48 18 119 171 35 155 190 Core Hits 802 | 2 33 17 18 9 33 49 56 10 1 81 7 29 44 1 30 10 9 30 19 38 10 39 61 21 80 65 Critical Kills 32 | . . . . . 1 3 1 . . . . . . . . 1 1 2 3 3 2 1 3 1 7 3 Critical Parts Destroyed 48 | . 1 . . . . 1 . . . 2 . . 1 . 1 2 . . 1 5 2 5 8 1 12 6 Critical Strikes 150 | 1 7 3 4 . 1 4 1 . . 8 1 6 3 . 4 5 4 4 4 8 4 8 18 4 28 20 Burn 12 | 1 6 3 2 . . . . . . . . . . . . . . . . . . . . . . . Meltdown 4 | . . . . . 1 3 . . . . . . . . . . . . . . . . . . . . Destroy 85 | . 1 . . . . 1 1 . . 1 . 1 1 . 1 4 1 3 4 8 4 8 12 2 20 12 Blast 48 | . . . 2 . . . . . . 6 1 5 2 . 3 1 3 1 . . . . 6 2 8 8 Detonate 1 | . . . . . . . . . . 1 . . . . . . . . . . . . . . . . Melee Attacks . | . . . . . . . . . . . . . . . . . . . . . . . . . . . Impact . | . . . . . . . . . . . . . . . . . . . . . . . . . . . Slashing . | . . . . . . . . . . . . . . . . . . . . . . . . . . . Piercing . | . . . . . . . . . . . . . . . . . . . . . . . . . . . Sneak Attacks . | . . . . . . . . . . . . . . . . . . . . . . . . . . . Combat Hostiles . | . . . . . . . . . . . . . . . . . . . . . . . . . . . Follow-up Attacks . | . . . . . . . . . . . . . . . . . . . . . . . . . . . Damage Inflicted 117528 | 62 1072 580 1088 232 1712 4476 5978 1148 223 12999 1653 6758 5820 500 5239 2214 2030 4064 3563 4629 1428 5158 14611 3290 14574 12427 Guns 13147 | 62 1072 580 724 189 347 190 255 . . 1907 150 1274 . . 177 615 308 1048 528 669 . . 43 232 1321 1456 Cannons 97115 | . . . 319 43 1365 4286 4350 1148 223 9925 1503 5344 4430 500 3537 1599 1722 2353 3035 3257 1428 5131 14473 3058 13131 10955 Explosions 7093 | . . . . . . . 1373 . . 1167 . 140 1390 . 1464 . . 663 . 703 . . 95 . 98 . Melee . | . . . . . . . . . . . . . . . . . . . . . . . . . . . Ramming 128 | . . . . . . . . . . . . . . . 61 . . . . . . 27 . . 24 16 Kinetic 55058 | 25 521 262 894 232 347 190 3726 1148 223 7616 1653 6618 4430 500 3714 2214 2030 2767 177 736 335 1550 2615 823 5081 4631 Thermal 55541 | 37 551 318 194 . 1365 4286 1698 . . 1167 . 140 1390 . 1464 . . 634 3386 3549 1093 3581 11070 2467 9371 7780 Explosive 599 | . . . . . . . 406 . . . . . . . . . . . . . . . 95 . 98 . Electromagnetic 1986 | . . . . . . . 148 . . . . . . . . . . 663 . 344 . . 831 . . . Impact . | . . . . . . . . . . . . . . . . . . . . . . . . . . . Slashing . | . . . . . . . . . . . . . . . . . . . . . . . . . . . Piercing . | . . . . . . . . . . . . . . . . . . . . . . . . . . . Entropic 4216 | . . . . . . . . . . 4216 . . . . . . . . . . . . . . . . Highest Corruption 5 | . . . . 3 . . . . . 5 5 . 1 1 3 3 3 5 . 1 . 2 2 . 3 5 Average Corruption 2 | . . . . 3 . . . . . 3 5 . 1 1 2 3 2 1 . 1 . 1 1 . 1 2 Corruption Purged 19 | . . . . . . . . . . . . . . . . . 3 . . 1 . 3 4 . 3 5 Corruption Blocked 85 | . . . . . . . . . . 6 . . . . . . . . . 15 9 . 20 . . 35 Effects 48 | . . . . . . . . . . 18 7 . 3 1 6 4 1 1 . . . 1 2 . 1 3 Message Errors 13 | . . . . . . . . . . 4 3 . 1 . 2 2 . . . . . . 1 . . . Matter Fused 18 | . . . . . . . . . . 7 3 . 1 . 2 2 . 1 . . . 1 . . 1 . Heat Flow Errors 5 | . . . . . . . . . . 1 1 . . . 1 . . . . . . . . . . 2 Energy Discharges 5 | . . . . . . . . . . 3 . . . . 1 . . . . . . . . . . 1 Data Loss (minor) 4 | . . . . . . . . . . 2 . . 1 1 . . . . . . . . . . . . Weapon Failures 3 | . . . . . . . . . . 1 . . . . . . 1 . . . . . 1 . . . Overload Shots 2 | . . . . . . . . . . . . . . . . . . 2 . . . . . . . . Effects 1 | . . . . . . . . . . . . . . . . . . 1 . . . . . . . . Energy Bleed 1 | . . . . . . . . . . . . . . . . . . 1 . . . . . . . . Overflow Damage 10639 | . . . . . 76 54 605 42 . 594 391 767 329 . 660 53 156 1 273 120 82 469 2257 313 1664 1733 Projectiles 10107 | . . . . . 76 54 358 42 . 556 391 767 310 . 565 53 156 . 273 56 82 469 2202 313 1651 1733 Explosions 495 | . . . . . . . 247 . . 38 . . 19 . 58 . . 1 . 64 . . 55 . 13 . Melee 37 | . . . . . . . . . . . . . . . 37 . . . . . . . . . . . Knockbacks 133 | . . . 2 . . . 11 3 2 24 1 8 7 2 10 . . 1 . . . 1 22 1 25 13 Impact 1 | . . . . . . . . . . . . . . . . . . . . . . 1 . . . . Kinetic 117 | . . . 2 . . . 9 2 2 19 1 8 7 2 9 . . 1 . . . . 20 1 22 12 Secondary 15 | . . . . . . . 2 1 . 5 . . . . 1 . . . . . . . 2 . 3 1 Self-Inflicted Damage 434 | . . . . . . . . . . . . . . . 30 . . 288 . . . . . 72 36 8 Shots 6 | . . . . . . . . . . . . . . . . . . 4 . . . . . 1 1 . Rammed 2 | . . . . . . . . . . . . . . . 1 . . . . . . . . . . 1 Targets Rammed 5 | . . . . 1 . . . . . . . . . . 1 . . . . . . 1 . . 1 1 Kicked 3 | . . . . 1 . . . . . . . . . . . . . . . . . 1 . . 1 . Crushed . | . . . . . . . . . . . . . . . . . . . . . . . . . . . Highest Temperature 478 | 14 . 14 . 96 463 433 139 . 44 264 108 415 478 78 275 . . 101 60 . . . . . . . Average Temperature 106 | 9 . 10 . 41 139 124 37 . 34 83 33 234 173 52 82 . . 59 23 . . . . . . . Received Heat Transfer 2189 | . 183 70 108 60 66 369 63 . . 287 30 66 141 . 147 18 . 25 4 94 8 84 165 28 89 84 Effects 4 | . . . . . 1 3 . . . . . . . . . . . . . . . . . . . . Shutdowns 2 | . . . . . 1 1 . . . . . . . . . . . . . . . . . . . . Damage (major) 2 | . . . . . . 2 . . . . . . . . . . . . . . . . . . . . Siege Activations . | . . . . . . . . . . . . . . . . . . . . . . . . . . . Robots Corrupted 2 | . . . . . . . . . . . . . . . . . . 2 . . . . . . . . Combat Hostiles . | . . . . . . . . . . . . . . . . . . . . . . . . . . . Parts Fried 12 | . . . . . . . . . . 1 . . . . . 1 . 4 . 1 . . 5 . . . Impact Corruptions 5 | . . . . . . . . . . . . . . . 4 . . . . . . . . . 1 . Robots Melted 8 | . . . . . 1 6 . . . . . . . . . . . . 1 . . . . . . . Combat Hostiles 8 | . . . . . 1 6 . . . . . . . . . . . . 1 . . . . . . . Parts Melted 63 | . 4 2 . . 5 21 4 . . 2 . . . . 1 . . . 6 1 2 4 6 . 2 3 Heat Transferred 30751 | 185 2035 1110 912 . 1073 5186 1425 . . 700 . 160 1440 . 1680 . . 407 1517 1582 481 1982 4025 700 2400 1751 Parts Sabotaged . | . . . . . . . . . . . . . . . . . . . . . . . . . . . Parts Stolen . | . . . . . . . . . . . . . . . . . . . . . . . . . . . Parts Stripped . | . . . . . . . . . . . . . . . . . . . . . . . . . . . Power Chain Reactions 1 | . . . . . . . . . . . . . . . . . . . . 1 . . . . . . Alert | -11 -10 -10 -10 -7 -5 -5 -5 -5 -5 -5 -4 -4 -4 -4 -4 -4 -4 -4 -3 -3 -2 -2 -2 -2 -1 -1 ------- Run | Yrd Mat Min Sub Rec Fac Gar Fac Upp Upp War Pro Fac Gar Fac Ext Cet Arc Hub Res Qua Res Tes Sec Gar Acc Com Peak Influence 1801 | 10 268 268 . 99 557 1254 1172 . . . . 909 1801 819 654 468 329 1214 837 738 456 447 731 1110 1779 1473 Initial 1100 | . 5 12 . . 367 197 570 . . . . 229 492 819 319 195 157 96 552 409 267 223 16 355 582 1100 Average 559 | 2 119 113 . 41 381 832 713 . . . . 509 1119 732 434 369 312 415 688 510 410 169 481 831 1006 1102 Maximum Alert Level 5 | . 1 1 . . 2 4 4 . . . . 3 5 3 2 2 1 4 3 3 2 2 3 4 5 4 Low Security (%) 20 | 100 79 97 . 100 . 4 . . . . . 5 . . . 4 3 7 . . . 65 7 . 1 . Level 1 20 | . 20 2 . . 51 10 16 . . . . 34 . . 47 52 96 46 . 17 24 30 20 16 20 . Level 2 27 | . . . . . 48 11 31 . . . . 24 15 43 52 43 . 33 51 78 75 4 67 16 13 . Level 3 17 | . . . . . . 50 30 . . . . 35 25 56 . . . 10 48 4 . . 5 46 10 42 Level 4 13 | . . . . . . 21 22 . . . . . 52 . . . . 2 . . . . . 20 42 57 Level 5 . | . . . . . . . . . . . . . 6 . . . . . . . . . . . 2 . High Security . | . . . . . . . . . . . . . . . . . . . . . . . . . . . Max Security . | . . . . . . . . . . . . . . . . . . . . . . . . . 9 . Squads Dispatched 77 | . 4 . . . 4 . 10 . . . . 4 . 1 . . . 4 4 3 . 6 10 . 19 8 Investigation 20 | . 4 . . . 2 . 2 . . . . 1 . . . . . 2 3 1 . 2 . . 2 1 Extermination 20 | . . . . . 2 . 3 . . . . 1 . . . . . 1 . 1 . 3 4 . 2 3 Reinforcement 13 | . . . . . . . 3 . . . . 1 . 1 . . . 1 1 . . 1 3 . . 2 Assault 13 | . . . . . . . 1 . . . . 1 . . . . . . . . . . 1 . 8 2 Garrison 2 | . . . . . . . 1 . . . . . . . . . . . . 1 . . . . . . Intercept 9 | . . . . . . . . . . . . . . . . . . . . . . . 2 . 7 . Searches Triggered 1 | . . . . . 1 . . . . . . . . . . . . . . . . . . . . . Construction Impeded . | . . . . . . . . . . . . . . . . . . . . . . . . . . . Haulers Reinforced 2 | . . . . . . . 1 . . . . . . . . . . . 1 . . . . . . . Active Scanning Responses . | . . . . . . . . . . . . . . . . . . . . . . . . . . . Cargo Convoy Interrupts . | . . . . . . . . . . . . . . . . . . . . . . . . . . . Stealth | -11 -10 -10 -10 -7 -5 -5 -5 -5 -5 -5 -4 -4 -4 -4 -4 -4 -4 -4 -3 -3 -2 -2 -2 -2 -1 -1 --------- Run | Yrd Mat Min Sub Rec Fac Gar Fac Upp Upp War Pro Fac Gar Fac Ext Cet Arc Hub Res Qua Res Tes Sec Gar Acc Com Distress Signals 36 | . . 1 . . . . . . . . . . . . . 2 . 1 4 2 5 1 3 . 3 14 Communications Jammed . | . . . . . . . . . . . . . . . . . . . . . . . . . . . Distress Signals . | . . . . . . . . . . . . . . . . . . . . . . . . . . . Times Spotted 666 | . 18 19 13 2 11 23 34 6 1 127 8 27 25 3 26 11 6 34 21 27 6 19 56 13 81 49 Peak Tracking Total 21 | . 3 6 2 1 3 5 6 3 1 21 7 5 9 2 4 5 1 10 5 6 3 3 7 5 17 6 Tactical Retreats 17 | . 1 3 1 . . . 1 . . 1 . . . 1 . . . 3 . . . . 1 . 2 3 Traps | -11 -10 -10 -10 -7 -5 -5 -5 -5 -5 -5 -4 -4 -4 -4 -4 -4 -4 -4 -3 -3 -2 -2 -2 -2 -1 -1 ------- Run | Yrd Mat Min Sub Rec Fac Gar Fac Upp Upp War Pro Fac Gar Fac Ext Cet Arc Hub Res Qua Res Tes Sec Gar Acc Com Traps Triggered 35 | . 1 . 3 . 2 4 3 . . . . 2 2 . 3 . . 3 2 2 . 3 2 3 . . Indirectly 2 | . . . . . . . . . . . . . . . . . . 2 . . . . . . . . Trap Hack Attempts . | . . . . . . . . . . . . . . . . . . . . . . . . . . . Triggered . | . . . . . . . . . . . . . . . . . . . . . . . . . . . Disarmed 12 | . . . . . . . . . . . . . . . . . . . . . . 6 . . 6 . Reprogrammed 14 | . . . . . . . . . . . . . . . . . . . 6 3 . . 4 . 1 . Reused 3 | . . . . . . . . . . . . . . . . . . . 1 . . . 2 . . . Traps Extracted . | . . . . . . . . . . . . . . . . . . . . . . . . . . . Installed . | . . . . . . . . . . . . . . . . . . . . . . . . . . . Triggered 15 | . . . . . . . . . . 11 . . . . . . . . 1 . . . 2 . 1 . Machines | -11 -10 -10 -10 -7 -5 -5 -5 -5 -5 -5 -4 -4 -4 -4 -4 -4 -4 -4 -3 -3 -2 -2 -2 -2 -1 -1 ---------- Run | Yrd Mat Min Sub Rec Fac Gar Fac Upp Upp War Pro Fac Gar Fac Ext Cet Arc Hub Res Qua Res Tes Sec Gar Acc Com Machines Disabled 106 | . . 1 1 . . 6 11 . . 2 1 11 6 2 3 . 2 23 . 6 . 4 17 5 4 1 Max in Single Turn 8 | . . . 1 . . 1 6 . . 1 1 2 2 2 2 . 1 8 . 2 . 1 2 2 1 1 Garrison Access 11 | . . . . . . . 1 . . . . . . . . . . . 2 1 . 1 . . 6 . Garrison Relay 10 | . . . . . . 4 . . . . . . 3 . . . . . . . . . . 3 . . Phase Generator 2 | . . . . . . . . . . . . . 1 . . . . . . . . . . 1 . . Network Hub 4 | . . . . . . . . . . . . . . . . . . 4 . . . . . . . . Machines Repaired . | . . . . . . . . . . . . . . . . . . . . . . . . . . . Machines Dismantled . | . . . . . . . . . . . . . . . . . . . . . . . . . . . Machines Sabotaged . | . . . . . . . . . . . . . . . . . . . . . . . . . . . Overloaded Fab Kills . | . . . . . . . . . . . . . . . . . . . . . . . . . . . Hacking | -11 -10 -10 -10 -7 -5 -5 -5 -5 -5 -5 -4 -4 -4 -4 -4 -4 -4 -4 -3 -3 -2 -2 -2 -2 -1 -1 --------- Run | Yrd Mat Min Sub Rec Fac Gar Fac Upp Upp War Pro Fac Gar Fac Ext Cet Arc Hub Res Qua Res Tes Sec Gar Acc Com Machines Accessed 174 | . 10 1 2 9 5 2 6 2 2 10 . 5 4 6 14 2 . 11 11 11 . 12 18 3 18 10 Terminals 113 | . 8 1 . 6 1 2 4 1 1 . . 2 4 3 14 2 . 9 7 8 . 6 15 3 8 8 Fabricators 13 | . . . . . 1 . 2 . . . . 2 . 1 . . . . 2 . . 2 . . 3 . Repair Stations 3 | . . . . . 1 . . . . . . . . . . . . . . . . 1 . . . 1 Recycling Units 8 | . 2 . . 3 . . . . . . . . . 1 . . . . 1 . . . . . . 1 Scanalyzers 9 | . . . . . 1 . . . . . . . . 1 . . . . . 2 . 2 2 . 1 . Garrison Access 14 | . . . . . 1 . . . . . . 1 . . . . . 2 1 1 . 1 1 . 6 . Total Hacks 725 | . 32 2 3 32 13 5 26 2 2 18 . 17 8 21 47 6 . 44 57 82 . 69 101 12 80 46 Successful 438 | . 19 2 3 11 9 3 19 2 2 18 . 11 4 16 33 4 . 34 28 43 . 45 53 6 47 26 Failed 284 | . 13 . . 21 4 2 7 . . . . 6 4 5 13 2 . 9 29 39 . 24 47 6 33 20 Catastrophic 50 | . . . . 2 1 . . . . . . 1 . . . . . 1 7 7 . 3 11 2 11 4 Database Lockouts 3 | . . . . . . . . . . . . . . . 1 . . 1 . . . . 1 . . . Manual 364 | . 18 . . 8 3 2 13 . . 1 . 7 2 7 19 1 . 30 40 41 . 34 61 9 41 27 Terminals 579 | . 27 2 . 23 3 5 18 1 1 . . 9 8 8 47 6 . 39 48 74 . 56 94 12 60 38 Fabricators 46 | . . . . . 3 . 8 . . . . 7 . 7 . . . . 7 . . 6 . . 8 . Repair Stations 8 | . . . . . 2 . . . . . . . . . . . . . . . . 1 . . . 5 Recycling Units 19 | . 5 . . 9 . . . . . . . . . 1 . . . . 1 . . . . . . 3 Scanalyzers 33 | . . . . . 4 . . . . . . . . 5 . . . . . 7 . 5 6 . 6 . Garrison Access 17 | . . . . . 1 . . . . . . 1 . . . . . 5 1 1 . 1 1 . 6 . Terminal Hacks 265 | . 13 2 3 3 . 3 9 2 2 18 . 4 4 4 30 4 . 21 16 27 . 24 37 6 18 15 Record 35 | . 2 1 2 . . . . 1 1 17 . . . . . 3 . . 3 2 . . 3 . . . Part Schematic 14 | . . . . 1 . . . . . . . . . . 4 . . 3 . 4 . 2 . . . . Robot Schematic 5 | . . . . . . . 1 . . . . . . . . . . 1 . 1 . 1 . . 1 . Robot Analysis 31 | . 3 . . . . . . . . . . 1 . . 6 . . 6 3 3 . 2 4 . . 3 Prototype ID Bank 16 | . 3 . . . . . . . . . . 1 . . 1 . . 2 1 2 . 1 3 . . 2 Open Door 19 | . . . . . . . . 1 1 1 . . . . 9 1 . . 1 . . . 3 1 . 1 Open DSF 1 | . . . . . . . . . . . . . . 1 . . . . . . . . . . . . Level Access Points 6 | . . . . . . . 1 . . . . . . . . . . . 1 1 . 1 1 . 1 . Branch Access Points 8 | . 1 . . . . . 1 . . . . . . 1 1 . . . 1 . . 1 . . 2 . Emergency Access Points 6 | . . . . . . 1 . . . . . . 1 . . . . 2 . . . . 1 1 . . Machine Index 7 | . . . . . . . 1 . . . . . . . 1 . . . 1 1 . . 1 . 1 1 Terminal Index 9 | . 1 . . 1 . . 1 . . . . . . . . . . 1 . 1 . 1 1 . 1 1 Fabricator Index 2 | . . . . . . . . . . . . . . . . . . 1 . 1 . . . . . . Recycling Unit Index 1 | . . . . . . . . . . . . . . . . . . . . 1 . . . . . . Scanalyzer Index 3 | . . . . . . . . . . . . . . . . . . . . 1 . 1 1 . . . Garrison Index 2 | . . . . . . . . . . . . . . . . . . . . 1 . . . . . 1 Alert Level 25 | . 1 . . . . . 1 . . . . 1 . 1 3 . . 1 1 2 . 4 5 . 4 1 Unreport Threat 27 | . 2 . . . . . 3 . . . . 1 . 1 4 . . 2 1 2 . 1 4 . 5 1 Locate Traps 2 | . . . . . . . . . . . . . . . . . . . . . . 1 . . 1 . Disarm Traps 4 | . . . . . . . . . . . . . . . . . . . . . . 1 2 . 1 . Reprogram Traps 4 | . . . . . . . . . . . . . . . . . . . 1 1 . . 1 . 1 . Dispatch Records 1 | . . . . . . . . . . . . . . . . . . . . . . . 1 . . . Maintenance Status 1 | . . . . . . . . . . . . . . . . . . . . . . . . . . 1 Security Status 2 | . . . . 1 . . . . . . . . . . . . . . . . . 1 . . . . Surveillance Status 1 | . . . . . . . . . . . . . . . . . . . . . . 1 . . . . Patrol Status 1 | . . . . . . . . . . . . . . . . . . . . . . . 1 . . . Recall Investigation 4 | . . . . . . . . . . . . . . . . . . 1 . 1 . 2 . . . . Recall Extermination 3 | . . . . . . . . . . . . . . . . . . . . 1 . 1 1 . . . Recall Reinforcements 2 | . . . . . . . . . . . . . . . . . . . 1 . . 1 . . . . Recall Assault 1 | . . . . . . . . . . . . . . . . . . . . . . . 1 . . . Registered Components 3 | . . . . . . . . . . . . . . . 1 . . . . 1 . . 1 . . . Registered Prototypes 3 | . . . . . . . . . . . . . . . . . . 1 . . . 1 1 . . . Zone Layout 3 | . . 1 . . . . . . . . . . . . . . . . 1 . . . . . . 1 Garrison Registry 3 | . . . . . . 1 . . . . . . 1 . . . . . . . . . . 1 . . Patrol Navigation 3 | . . . . . . 1 . . . . . . 1 . . . . . . . . . . 1 . . Security Stations 3 | . . . . . . . . . . . . . 1 . . . . . . . . . . 2 . . Derelict Proto ID Bank 1 | . . . 1 . . . . . . . . . . . . . . . . . . . . . . . Activate Exoskeleton 1 | . . . . . . . . . . . . . . . . . . . . . . . 1 . . . Disengage Seal 2 | . . . . . . . . . . . . . . . . . . . . . . . . . . 2 Fabricator Hacks 24 | . . . . . 1 . 6 . . . . 3 . 2 . . . . 2 . . 5 . . 5 . Network Status 6 | . . . . . 1 . 1 . . . . 1 . 1 . . . . . . . 1 . . 1 . Load Schematic 7 | . . . . . . . 2 . . . . 1 . . . . . . . . . 2 . . 2 . Build 11 | . . . . . . . 3 . . . . 1 . 1 . . . . 2 . . 2 . . 2 . Repair Station Hacks 3 | . . . . . 1 . . . . . . . . . . . . . . . . . . . . 2 Scan Component 1 | . . . . . . . . . . . . . . . . . . . . . . . . . . 1 Repair 1 | . . . . . . . . . . . . . . . . . . . . . . . . . . 1 Refit 1 | . . . . . 1 . . . . . . . . . . . . . . . . . . . . . Recycling Unit Hacks 8 | . 2 . . 3 . . . . . . . . . 1 . . . . 1 . . . . . . 1 Retrieve Components 8 | . 2 . . 3 . . . . . . . . . 1 . . . . 1 . . . . . . 1 Scanalyzer 27 | . . . . . 3 . . . . . . . . 5 . . . . . 5 . 5 3 . 6 . Insert Component 19 | . . . . . 1 . . . . . . . . 2 . . . . . 5 . 5 3 . 3 . Analyze 8 | . . . . . 2 . . . . . . . . 3 . . . . . . . . . . 3 . Garrison Access Hacks 14 | . . . . . 1 . . . . . . 1 . . . . . 2 1 1 . 1 1 . 6 . Unlock Access 5 | . . . . . 1 . . . . . . 1 . . . . . 2 . . . . 1 . . . Seal Access 9 | . . . . . . . . . . . . . . . . . . . 1 1 . 1 . . 6 . Unauthorized Hacks 97 | . 4 . . 5 3 . 4 . . . . 3 . 4 3 . . 11 8 10 . 10 12 . 12 8 Terminals 70 | . 2 . . 2 . . 2 . . . . 2 . 2 3 . . 8 6 9 . 8 12 . 9 5 Track 13 | . . . . . . . . . . . . . . . . . . 2 1 2 . 2 3 . 2 1 Botnet 37 | . 2 . . 2 . . 2 . . . . 2 . 2 3 . . 3 3 4 . 3 5 . 4 2 Disrupt 13 | . . . . . . . . . . . . . . . . . . 2 1 2 . 2 3 . 2 1 Operators 7 | . . . . . . . . . . . . . . . . . . 1 1 1 . 1 1 . 1 1 Fabricators 13 | . . . . . 2 . 2 . . . . 1 . 2 . . . . 2 . . 1 . . 3 . Report 3 | . . . . . 1 . . . . . . . . 1 . . . . . . . . . . 1 . Prioritize 8 | . . . . . . . 2 . . . . 1 . 1 . . . . 2 . . 1 . . 1 . Liberate 1 | . . . . . 1 . . . . . . . . . . . . . . . . . . . . . Fabnet 1 | . . . . . . . . . . . . . . . . . . . . . . . . . 1 . Repair Stations 3 | . . . . . 1 . . . . . . . . . . . . . . . . 1 . . . 1 Mechanics 3 | . . . . . 1 . . . . . . . . . . . . . . . . 1 . . . 1 Recycling Units 7 | . 2 . . 3 . . . . . . . . . . . . . . . . . . . . . 2 Reject 1 | . . . . . . . . . . . . . . . . . . . . . . . . . . 1 Mask 1 | . . . . . . . . . . . . . . . . . . . . . . . . . . 1 Tunnel 5 | . 2 . . 3 . . . . . . . . . . . . . . . . . . . . . . Scanalyzers 1 | . . . . . . . . . . . . . . . . . . . . 1 . . . . . . Researchers 1 | . . . . . . . . . . . . . . . . . . . . 1 . . . . . . Garrison Access 3 | . . . . . . . . . . . . . . . . . . 3 . . . . . . . . Broadcast 1 | . . . . . . . . . . . . . . . . . . 1 . . . . . . . . Redirect 1 | . . . . . . . . . . . . . . . . . . 1 . . . . . . . . Watchers 1 | . . . . . . . . . . . . . . . . . . 1 . . . . . . . . Data Cores Recovered 5 | . . . . . . . 1 . . . . . . . 1 . . . . 1 . 1 . . 1 . Used 4 | . . . . . . . 1 . . . . . . . 1 . . . . 1 . 1 . . . . Hacking Detections 101 | . 8 1 . 8 3 2 6 . 1 . . 4 3 5 5 . . 10 8 5 . 6 8 1 11 6 Full Trace Events 14 | . 1 . . 4 1 . 2 . . . . 1 . . . . . . . 1 . 2 . . 1 1 Feedback Events . | . . . . . . . . . . . . . . . . . . . . . . . . . . . Feedback Blocked . | . . . . . . . . . . . . . . . . . . . . . . . . . . . Robot Schematics Acquired 10 | . . . . . . . 1 . . . . . . . . . . 1 . 2 . 3 2 . 1 . Robots Built 13 | . . . . . . . 6 . . . . 3 . 2 . . . . . . . . . . 2 . Authchips 1 | . . . . . . . . . . . . . . . . . . . . . . . . . 1 . Time 282 | . . . . . . . 114 . . . . 38 . 93 . . . . . . . . . . 37 . Total Robot Build Rating 77 | . . . . . . . 30 . . . . 15 . 14 . . . . . . . . . . 18 . Part Schematics Acquired 46 | . . . . 1 1 . . . . . . . . 2 4 . . 3 . 16 . 9 7 . 3 . Parts Built 8 | . . . . . . . 1 . . . . . . . . . . . 4 . . 2 . . 1 . Authchips . | . . . . . . . . . . . . . . . . . . . . . . . . . . . Time 331 | . . . . . . . 128 . . . . . . . . . . . 44 . . 97 . . 62 . Total Part Build Rating 66 | . . . . . . . 8 . . . . . . . . . . . 34 . . 17 . . 7 . Parts Repaired 1 | . . . . . . . . . . . . . . . . . . . . . . . . . . 1 Time 23 | . . . . . . . . . . . . . . . . . . . . . . . . . . 23 Parts Recycled . | . . . . . . . . . . . . . . . . . . . . . . . . . . . Recycled Matter . | . . . . . . . . . . . . . . . . . . . . . . . . . . . Retrieved Matter . | . . . . . . . . . . . . . . . . . . . . . . . . . . . Retrieved Components 22 | . 13 . . 3 . . . . . . . . . 3 . . . . 3 . . . . . . . Parts Scanalyzed 6 | . . . . . 1 . . . . . . . . 2 . . . . . . . . . . 3 . Part Schematics Acquired 6 | . . . . . 1 . . . . . . . . 2 . . . . . . . . . . 3 . Parts Damaged 1 | . . . . . . . . . . . . . . . . . . . . . . . . . 1 . Bothacking | -11 -10 -10 -10 -7 -5 -5 -5 -5 -5 -5 -4 -4 -4 -4 -4 -4 -4 -4 -3 -3 -2 -2 -2 -2 -1 -1 ------------ Run | Yrd Mat Min Sub Rec Fac Gar Fac Upp Upp War Pro Fac Gar Fac Ext Cet Arc Hub Res Qua Res Tes Sec Gar Acc Com Used RIF Installer 3 | . . . . . . . . . . . . . 2 . . . . . . . . . . 1 . . Robot Detection 1 | . . . . . . . . . . . . . 1 . . . . . . . . . . . . . Program Shield 1 | . . . . . . . . . . . . . . . . . . . . . . . . 1 . . Robots Hacked 4 | . . . . . . . . . . . . . . . . . . . . . . . . . . 4 Non-combat 1 | . . . . . . . . . . . . . . . . . . . . . . . . . . 1 Combat 3 | . . . . . . . . . . . . . . . . . . . . . . . . . . 3 Robot Hacks Applied 17 | . . . . . . . . . . . . . . . . . . . . . . . . . . 17 parse_system 4 | . . . . . . . . . . . . . . . . . . . . . . . . . . 4 check_alert 4 | . . . . . . . . . . . . . . . . . . . . . . . . . . 4 purge_threat 6 | . . . . . . . . . . . . . . . . . . . . . . . . . . 6 reprogram_traps 1 | . . . . . . . . . . . . . . . . . . . . . . . . . . 1 clear_repairs 1 | . . . . . . . . . . . . . . . . . . . . . . . . . . 1 formatsys_low 1 | . . . . . . . . . . . . . . . . . . . . . . . . . . 1 Manual 1 | . . . . . . . . . . . . . . . . . . . . . . . . . . 1 Relay Couplers Released 19 | . . . . . . 7 1 . . . . . 5 . . . . . 1 . . . . 5 . . Machine Destruction 19 | . . . . . . 7 1 . . . . . 5 . . . . . 1 . . . . 5 . . Attached 1 | . . . . . . . . . . . . . . . . . . . . . . . . . . 1 Fabnet Peak Effective % . | . . . . . . . . . . . . . . . . . . . . . . . . . . . Robots Rewired 23 | . . . . . . . . . . 5 2 . 4 . 12 . . . . . . . . . . . Allies Hacked . | . . . . . . . . . . . . . . . . . . . . . . . . . . . Hacks Repelled . | . . . . . . . . . . . . . . . . . . . . . . . . . . . Allies | -11 -10 -10 -10 -7 -5 -5 -5 -5 -5 -5 -4 -4 -4 -4 -4 -4 -4 -4 -3 -3 -2 -2 -2 -2 -1 -1 -------- Run | Yrd Mat Min Sub Rec Fac Gar Fac Upp Upp War Pro Fac Gar Fac Ext Cet Arc Hub Res Qua Res Tes Sec Gar Acc Com Total Allies 60 | . . 3 . . . 2 6 . . 5 2 6 4 2 22 3 . . . . . . . 2 2 1 Largest Group 21 | . . 3 3 . . 2 6 1 . 5 2 8 4 6 21 15 14 9 . . . . . 2 4 1 Highest-Rated Group 949 | . . 40 40 . . 142 174 29 . 245 96 315 156 219 949 908 812 433 . . . . . 80 253 45 Highest-Rated Ally 153 | . . 16 16 . . 80 29 29 . 68 49 49 51 51 153 153 153 96 . . . . . 51 89 45 Total Orders . | . . . . . . . . . . . . . . . . . . . . . . . . . . . Ally Attacks 335 | . . 18 14 . . 15 35 2 . 35 . 40 . 5 32 26 15 33 . . . . . . 65 . Total Damage 7770 | . . 180 179 . . 590 439 38 . 1270 . 852 . 118 836 656 447 826 . . . . . . 1339 . Kills 59 | . . 4 2 . . 3 2 . . 10 . 5 . 1 5 4 2 5 . . . . . . 16 . Allies Corrupted 2 | . . . . . . . . . . . . 1 . . . . . 1 . . . . . . . . Allies Melted 4 | . . . . . . 1 . . . 2 . . . . 1 . . . . . . . . . . . Intel | -11 -10 -10 -10 -7 -5 -5 -5 -5 -5 -5 -4 -4 -4 -4 -4 -4 -4 -4 -3 -3 -2 -2 -2 -2 -1 -1 ------- Run | Yrd Mat Min Sub Rec Fac Gar Fac Upp Upp War Pro Fac Gar Fac Ext Cet Arc Hub Res Qua Res Tes Sec Gar Acc Com Robot Analysis Total 30 | . 3 . . . . . . . . . . 1 . . 6 . . 6 3 3 . 2 4 . . 2 Derelict Logs Recovered 6 | . . 1 3 . . . . 1 1 . . . . . . . . . . . . . . . . . Drone Launches . | . . . . . . . . . . . . . . . . . . . . . . . . . . . Drone Recoveries . | . . . . . . . . . . . . . . . . . . . . . . . . . . . Exploration | -11 -10 -10 -10 -7 -5 -5 -5 -5 -5 -5 -4 -4 -4 -4 -4 -4 -4 -4 -3 -3 -2 -2 -2 -2 -1 -1 ------------- Run | Yrd Mat Min Sub Rec Fac Gar Fac Upp Upp War Pro Fac Gar Fac Ext Cet Arc Hub Res Qua Res Tes Sec Gar Acc Com Turns Passed 20275 | 71 708 746 2050 698 608 1408 722 304 390 1139 283 515 523 200 508 167 375 648 736 1010 329 1484 1663 437 1438 1115 Spaces Moved 19511 | 58 650 308 1528 526 549 770 570 421 393 1143 315 637 595 299 657 176 135 778 896 1306 385 1948 1881 442 1328 817 Core 6 | 6 . . . . . . . . . . . . . . . . . . . . . . . . . . Treads 6 | 6 . . . . . . . . . . . . . . . . . . . . . . . . . . Legs 7456 | . . . . 96 434 . . . . . . . . . . . . . . 616 385 1948 1881 442 1328 326 Wheels 2962 | 46 650 308 1528 430 . . . . . . . . . . . . . . . . . . . . . . Hover 9081 | . . . . . 115 770 570 421 393 1143 315 637 595 299 657 176 135 778 896 690 . . . . . 491 Flight . | . . . . . . . . . . . . . . . . . . . . . . . . . . . Fastest Speed 42 | 50 80 80 80 75 75 126 54 54 54 54 57 57 57 50 50 50 50 50 42 58 58 58 58 58 58 93 Average Speed 68 | 85 80 80 80 93 91 126 79 54 54 55 63 57 57 51 50 50 55 66 57 60 58 58 58 58 69 93 Slowest Speed 160 | 160 80 80 80 123 126 126 126 54 54 74 81 57 57 57 50 50 78 78 70 86 58 58 58 58 93 93 Overloaded Moves . | . . . . . . . . . . . . . . . . . . . . . . . . . . . Propulsion Burnouts . | . . . . . . . . . . . . . . . . . . . . . . . . . . . Robots Hopped 1 | . . . . . . . . . . . . 1 . . . . . . . . . . . . . . Cave-ins Triggered . | . . . . . . . . . . . . . . . . . . . . . . . . . . . Teleports 4 | . . . . . . . . . . . . . . . . . . . . 3 . . 1 . . . Exploration Rate (%) 59 | 5 90 59 96 95 15 83 15 64 57 81 57 16 81 9 80 79 85 77 33 96 10 95 91 63 39 35 Regions Visited 26 Branch Regions 15 Pre-discovered Areas 12 | . 2 . 2 3 . . . 2 . 3 . . . . . . . . . . . . . . . . Known Exits Taken 22 | . 1 1 1 1 1 . 1 1 1 1 1 1 . 1 1 1 1 1 1 1 1 1 1 . 1 . Unknown Exits Taken 1 | 1 . . . . . . . . . . . . . . . . . . . . . . . . . . Scrap Searched 13 | . . . 10 . . . . 1 2 . . . . . . . . . . . . . . . . . Spaces Dug 186 | . . . 1 . . 1 6 . 5 . . 45 15 4 . . . 5 2 3 . 7 52 1 38 1 Terrain Destroyed 1625 | . . . 2 . 3 22 86 9 10 59 12 74 157 5 68 9 25 665 24 30 4 35 89 103 99 35 Melee . | . . . . . . . . . . . . . . . . . . . . . . . . . . . Projectile 566 | . . . 2 . 3 22 26 9 10 59 12 33 40 1 22 9 25 40 24 26 4 35 47 23 59 35 AOE 1059 | . . . . . . . 60 . . . . 41 117 4 46 . . 625 . 4 . . 42 80 40 . Terrain Rammed . | . . . . . . . . . . . . . . . . . . . . . . . . . . . Walls Destroyed . | . . . . . . . . . . . . . . . . . . . . . . . . . . . Machines Disabled . | . . . . . . . . . . . . . . . . . . . . . . . . . . . Actions | -11 -10 -10 -10 -7 -5 -5 -5 -5 -5 -5 -4 -4 -4 -4 -4 -4 -4 -4 -3 -3 -2 -2 -2 -2 -1 -1 --------- Run | Yrd Mat Min Sub Rec Fac Gar Fac Upp Upp War Pro Fac Gar Fac Ext Cet Arc Hub Res Qua Res Tes Sec Gar Acc Com Total 24610 | 68 727 755 2250 718 608 1119 757 475 560 1539 382 726 713 335 778 235 420 846 1075 1478 473 2170 2213 560 1621 1009 Wait 3117 | 1 7 403 616 163 31 216 80 34 162 224 50 22 12 25 15 38 263 19 124 74 63 99 99 79 147 51 Move 19479 | 57 649 307 1527 525 548 767 569 420 392 1142 314 634 593 298 656 175 134 777 895 1305 384 1947 1880 440 1327 817 Hop 1 | . . . . . . . . . . . . 1 . . . . . . . . . . . . . . Pick Up 60 | . 2 1 2 2 2 . 1 2 . 5 . 2 2 . . . 1 1 1 13 . 11 8 2 1 1 Fast Attach 90 | 6 2 1 10 1 1 . 4 . . 4 . 2 . 2 . . 1 2 2 5 3 13 22 . 4 5 Attach 31 | . . 1 . 2 . . 1 . 1 3 . 2 2 1 . . 1 . 1 4 . . 7 . 3 2 Detach 15 | . . . . . . . 1 . . 3 . 1 . 2 1 . 1 . . 1 . . 3 . 1 1 Swap 61 | . 1 . 1 . . 2 3 . . 1 1 . 1 1 . 1 . 2 . 2 . 6 12 4 13 10 Drop 114 | . 2 1 11 7 1 . 6 1 . 10 . 3 . 1 . . 2 3 1 13 3 21 19 1 3 5 Fire 924 | 4 56 26 52 7 20 54 42 11 5 72 7 41 57 5 28 13 16 31 25 35 8 54 82 22 73 78 Melee . | . . . . . . . . . . . . . . . . . . . . . . . . . . . Ram 2 | . . . . . . . . . . . . . . . 1 . . . . . . . . . . 1 Kick 3 | . . . . 1 . . . . . . . . . . . . . . . . . 1 . . 1 . Crush . | . . . . . . . . . . . . . . . . . . . . . . . . . . . Escape Stasis 96 | . . . . . . 31 39 . . . . . . . 12 . . . . 13 . . . 1 . . Rewire 72 | . . . . . . . . . . 11 5 . 14 . 42 . . . . . . . . . . . Trap . | . . . . . . . . . . . . . . . . . . . . . . . . . . . Miscellaneous 545 | . 8 15 31 10 5 49 11 7 . 64 5 18 32 . 23 8 1 11 26 13 12 18 81 11 48 38 Route ------- -11/Scrapyard -10/Materials (discovered 4 exits: *Mat x2 / *Min x2) -10/Mines (discovered 2 exits: Mat / *Sub) -10/Subcaves (discovered 3 exits: *Mat x2 / *Rec) -7/Recycling -5/Factory -5/Garrison (discovered 3 exits: *Fac x3) -5/Factory (discovered 6 exits: Fac x4 / *Upp x2) -5/Upper Caves -5/Upper Caves -5/Warlord -4/Proximity Caves -4/Factory (discovered 2 exits: *Res / Gar) -4/Garrison (discovered 3 exits: *Fac x3) -4/Factory (discovered 4 exits: Upp x2 / *Ext x2) -4/Extension (discovered 3 exits: *Res x2 / *Cet) -4/Cetus (discovered 2 exits: *Res / *Arc) -4/Archives (discovered 3 exits: *Res / *Hub x2) -4/Hub_04(d) (discovered 5 exits: *Res x3 / Gar / Gar) -3/Research (discovered 6 exits: *Res x3 / Arm / *Qua x2) -3/Quarantine -2/Research (discovered 3 exits: *Acc / *Tes x2) -2/Testing (discovered 2 exits: *Acc / *Sec) -2/Section 7 (discovered 2 exits: *Acc / Gar) -2/Garrison (discovered 3 exits: *Acc x3) -1/Access (discovered 2 exits: Sur / *Com) -1/Command Free Derelict Territories History --------- Turn | Location | Event 6 | -11/Scrapyard | Upgraded with Propulsion slot (x1) 6 | -11/Scrapyard | Upgraded with Utility slot (x1) 6 | -11/Scrapyard | Upgraded with Weapon slot (x1) 23 | -11/Scrapyard | Discovered new exit (range 17) 72 | -11/Scrapyard | Entered Materials 87 | -10/Materials | Discovered new exit (range 7) 247 | -10/Materials | Discovered new exit (range 7) 277 | -10/Materials | Identified exit to Mines 308 | -10/Materials | Build established: Hacker-Skirmisher 385 | -10/Materials | Discovered new exit (range 12) 577 | -10/Materials | Reached level 2 663 | -10/Materials | Discovered new exit (range 14) 722 | -10/Materials | Identified exit to Materials 780 | -10/Materials | Entered Mines 815 | -10/Mines | Found a damaged Exp. Sensor Array with a note attached 817 | -10/Mines | Found Prototype Device 817 | -10/Mines | Identified Exp. Sensor Array 833 | -10/Mines | Learned 4 Materials zone layouts 856 | -10/Mines | Excavation squad dispatched 856 | -10/Mines | A large section of the Mines collapsed 1047 | -10/Mines | Core integrity fell below 50% 1068 | -10/Mines | Reached level 3 1074 | -10/Mines | Upgraded with Utility slot (x1) 1106 | -10/Mines | Excavation squad dispatched 1108 | -10/Mines | Assisted by bots powering up and referring to "LRC-V3" 1164 | -10/Mines | Discovered exit to Materials (range 15) 1234 | -10/Mines | Reached level 4 1237 | -10/Mines | Upgraded with Weapon slot (x1) 1259 | -10/Mines | Discovered new exit (range 13) 1525 | -10/Mines | Identified exit to Subcaves 1526 | -10/Mines | Entered Subcaves 1526 | -10/Subcaves | Accompanied by 3 allies 1528 | -10/Subcaves | Learned location of Zion (-7) 1542 | -10/Subcaves | Shifting Twisted Machinery released Battle Rifle 1544 | -10/Subcaves | Shifting Twisted Machinery released Sub. Monowheel 1733 | -10/Subcaves | Visited 4L-MR0's lab 1746 | -10/Subcaves | Found Gun Armor 2024 | -10/Subcaves | Ambushed by Subdweller buried in earth 2109 | -10/Subcaves | Visited Clippyterm 2602 | -10/Subcaves | Learned 2 Materials zone layouts 2664 | -10/Subcaves | Discovered new exit (range 15) 2780 | -10/Subcaves | Identified exit to Recycling 3000 | -10/Subcaves | Discovered new exit (range 18) 3010 | -10/Subcaves | Met a Zionite searching for "candidates" 3013 | -10/Subcaves | Identified exit to Materials 3038 | -10/Subcaves | Ambushed by Subdwellers from Twisted Machinery 3109 | -10/Subcaves | Shifting Twisted Machinery released Sub. Optics 3109 | -10/Subcaves | Shifting Twisted Machinery released Mak. Light Armor Plating 3145 | -10/Subcaves | Discovered exit to Materials (range 15) 3153 | -10/Subcaves | Shifting Twisted Machinery released Battle Rifle 3576 | -10/Subcaves | Entered Recycling 3578 | -7/Recycling | Reached level 5 3578 | -7/Recycling | Reached level 6 3578 | -7/Recycling | Reached level 7 3578 | -7/Recycling | Reached level 8 3578 | -7/Recycling | Upgraded with Propulsion slot (x1) 3578 | -7/Recycling | Upgraded with Utility slot (x3) 3578 | -7/Recycling | Found Scrap Engine 3612 | -7/Recycling | Attached Gun Armor, gained temporary slots: Weapon x2 3903 | -7/Recycling | Discovered new exit (range 17) 4125 | -7/Recycling | Identified exit to Factory 4274 | -7/Recycling | Entered Factory 4276 | -5/Factory | Reached level 9 4276 | -5/Factory | Reached level 10 4276 | -5/Factory | Reached level 11 4276 | -5/Factory | Reached level 12 4276 | -5/Factory | Reached level 13 4276 | -5/Factory | Reached level 14 4276 | -5/Factory | Reached level 15 4276 | -5/Factory | Reached level 16 4276 | -5/Factory | Reached level 17 4278 | -5/Factory | Upgraded with Power slot (x2) 4278 | -5/Factory | Upgraded with Propulsion slot (x1) 4278 | -5/Factory | Upgraded with Utility slot (x1) 4278 | -5/Factory | Upgraded with Weapon slot (x1) 4574 | -5/Factory | Search patrols dispatched 4613 | -5/Factory | Build established: Hacker-Construct 4847 | -5/Factory | Reached level 18 4881 | -5/Factory | Identified exit to Garrison 4882 | -5/Factory | Entered Garrison 4946 | -5/Garrison | Triggered checkpoint 4946 | -5/Garrison | Garrison Relay disabled 5016 | -5/Garrison | Found embedded Infiltrators 5064 | -5/Garrison | Triggered checkpoint 5092 | -5/Garrison | Triggered checkpoint 5097 | -5/Garrison | Reached level 19 5144 | -5/Garrison | Triggered checkpoint 5163 | -5/Garrison | Triggered checkpoint 5212 | -5/Garrison | Destroyed 9 combat bots 5266 | -5/Garrison | Garrison Relay disabled 5266 | -5/Garrison | Reached level 20 5310 | -5/Garrison | Discovered new exit (range 18) 5331 | -5/Garrison | Identified exit to Factory 5476 | -5/Garrison | Garrison Relay disabled 5494 | -5/Garrison | Triggered checkpoint 5593 | -5/Garrison | Discovered exit to Factory (range 3) 5614 | -5/Garrison | Discovered exit to Factory (range 12) 5614 | -5/Garrison | Discovered exit to Factory (range 63) 5614 | -5/Garrison | Discovered exit to Factory (range 78) 5981 | -5/Garrison | Garrison Relay disabled 6199 | -5/Garrison | Attempted to access garrison exit controls, blocked by remote lockdown 6290 | -5/Garrison | Entered Factory 6319 | -5/Factory | Reached level 21 6418 | -5/Factory | Identified exit to Upper Caves 6418 | -5/Factory | Identified exit to Factory 6729 | -5/Factory | Upgraded with Propulsion slot (x1) 6756 | -5/Factory | Fabricated Antigrav Array (x1) 6765 | -5/Factory | Fabricated G-50 Soldier? 6782 | -5/Factory | Garrison activated, responded to threat 6790 | -5/Factory | Reached level 22 6824 | -5/Factory | Destroyed 8 combat bots 6833 | -5/Factory | Fabricated G-50 Soldier? 6893 | -5/Factory | Destroyed 7 combat bots 7012 | -5/Factory | Entered Upper Caves 7012 | -5/Upper Caves | Accompanied by 1 ally 7026 | -5/Upper Caves | Met a Warlord Commander 7027 | -5/Upper Caves | Learned location of Warlord (-5) 7028 | -5/Upper Caves | Warlord Commander delivered Encrypted Comm Array 7032 | -5/Upper Caves | Found Encrypted Comm Array 7056 | -5/Upper Caves | Attracted the attention of an 0b10 checkpoint 7303 | -5/Upper Caves | Discovered new exit (range 13) 7309 | -5/Upper Caves | Identified exit to Upper Caves 7316 | -5/Upper Caves | Entered another Upper Caves area 7317 | -5/Upper Caves | Encountered a Warlord checkpoint 7384 | -5/Upper Caves | Reached level 23 7387 | -5/Upper Caves | Upgraded with Utility slot (x1) 7418 | -5/Upper Caves | Learned Factory terminal intel 7537 | -5/Upper Caves | Discovered new exit (range 19) 7546 | -5/Upper Caves | Identified exit to Warlord 7706 | -5/Upper Caves | Entered Warlord 7800 | -5/Warlord | Learned Armory scanalyzer intel 7802 | -5/Warlord | Learned location of Quarantine (-3) 7802 | -5/Warlord | Learned location of Command (-1) 7802 | -5/Warlord | Learned Quarantine emergency access door positions 7802 | -5/Warlord | Learned Quarantine stockpile data 7936 | -5/Warlord | Received a Watcher feed algorithm from an ecstatic Tinkerer 7942 | -5/Warlord | Met Warlord 7967 | -5/Warlord | Warlord's base attacked by MAIN.C 8102 | -5/Warlord | Spotted B-86 Titan 8108 | -5/Warlord | Spotted B-75 Beast 8113 | -5/Warlord | Allies destroyed B-86 Titan 8116 | -5/Warlord | Allies destroyed B-75 Beast 8200 | -5/Warlord | Warlord forces counterattacked 8201 | -5/Warlord | Spotted B-86 Titan 8211 | -5/Warlord | Destroyed B-86 Titan 8279 | -5/Warlord | P-80 Master assimilated allied OR-ZX4(g) 8311 | -5/Warlord | Destroyed 10 combat bots 8322 | -5/Warlord | Lost 11 allies 8369 | -5/Warlord | Spotted Executioner 8369 | -5/Warlord | Spotted Striker 8372 | -5/Warlord | Reached level 24 8379 | -5/Warlord | Destroyed Executioner 8400 | -5/Warlord | Found Prototype Device 8400 | -5/Warlord | Identified Adv. Kinecellerator 8403 | -5/Warlord | Destroyed 7 combat bots 8467 | -5/Warlord | Spotted Executioner 8467 | -5/Warlord | Spotted Executioner 8514 | -5/Warlord | Lost 9 allies 8568 | -5/Warlord | Spotted Executioner 8568 | -5/Warlord | Spotted Executioner 8573 | -5/Warlord | Destroyed Executioner 8587 | -5/Warlord | Destroyed Executioner 8601 | -5/Warlord | Found Prototype Processor 8606 | -5/Warlord | Lost 4 allies 8608 | -5/Warlord | Destroyed 11 combat bots 8617 | -5/Warlord | Found Prototype Processor 8617 | -5/Warlord | Identified Exp. Core Analyzer 8642 | -5/Warlord | Warlord base infiltrated, sounded retreat 8670 | -5/Warlord | Spotted Striker 8671 | -5/Warlord | Spotted Executioner 8671 | -5/Warlord | Spotted Executioner 8672 | -5/Warlord | Spotted B-75 Beast 8673 | -5/Warlord | Spotted B-86 Titan 8676 | -5/Warlord | Destroyed Executioner 8679 | -5/Warlord | Destroyed Executioner 8682 | -5/Warlord | Destroyed Striker 8689 | -5/Warlord | Destroyed B-75 Beast 8694 | -5/Warlord | Destroyed B-86 Titan 8715 | -5/Warlord | Destroyed 9 combat bots 8717 | -5/Warlord | Found Prototype Processor 8717 | -5/Warlord | Identified Exp. Targeting Computer (x2) 8720 | -5/Warlord | Lost 8 allies 8767 | -5/Warlord | Spotted Executioner 8769 | -5/Warlord | Spotted Executioner 8771 | -5/Warlord | Spotted Striker 8771 | -5/Warlord | Spotted Executioner 8777 | -5/Warlord | Destroyed Executioner 8782 | -5/Warlord | Destroyed Executioner 8806 | -5/Warlord | Destroyed 7 combat bots 8819 | -5/Warlord | Lost 9 allies 8826 | -5/Warlord | Discovered new exit (range 9) 8831 | -5/Warlord | Identified exit to Proximity Caves 8845 | -5/Warlord | Entered Proximity Caves 8960 | -4/Proximity Caves | Discovered exit to Factory (range 13) 8962 | -4/Proximity Caves | Spotter reported a threat 9008 | -4/Proximity Caves | Reached level 25 9049 | -4/Proximity Caves | Destroyed 7 combat bots 9128 | -4/Proximity Caves | Entered Factory 9128 | -4/Factory | Accompanied by 2 allies 9129 | -4/Factory | Loaded intel: 28 terminal locations 9138 | -4/Factory | Identified exit to Garrison 9343 | -4/Factory | Spotted B-86 Titan 9354 | -4/Factory | Allied Derelicts emerged from ambush trap array 9354 | -4/Factory | Allies destroyed B-86 Titan 9372 | -4/Factory | Fabricated G-50 Soldier? 9414 | -4/Factory | First assault squad dispatched 9433 | -4/Factory | Reached level 26 9473 | -4/Factory | Destroyed 7 combat bots 9491 | -4/Factory | Lost 4 allies 9558 | -4/Factory | Lost 3 allies 9560 | -4/Factory | Discovered new exit (range 19) 9570 | -4/Factory | Identified exit to Research 9643 | -4/Factory | Entered Garrison 9657 | -4/Garrison | Discovered new exit (range 56) 9657 | -4/Garrison | Discovered new exit (range 77) 9657 | -4/Garrison | Discovered new exit (range 59) 9682 | -4/Garrison | Spotted B-86 Titan 9683 | -4/Garrison | Upgraded with Utility slot (x1) 9693 | -4/Garrison | Destroyed B-86 Titan 9703 | -4/Garrison | Triggered checkpoint 9778 | -4/Garrison | Destroyed 14 combat bots 9803 | -4/Garrison | Triggered checkpoint 9824 | -4/Garrison | Installed Relay Interface Framework 9844 | -4/Garrison | Garrison Relay disabled 9851 | -4/Garrison | Triggered checkpoint 9967 | -4/Garrison | Learned Factory security intel 9971 | -4/Garrison | Triggered checkpoint 9980 | -4/Garrison | Garrison Relay disabled 9980 | -4/Garrison | Reached level 27 9999 | -4/Garrison | Identified exit to Factory 10049 | -4/Garrison | Expanded RIF knowledge: Robot Detection 10071 | -4/Garrison | Triggered checkpoint 10132 | -4/Garrison | Garrison Relay disabled 10161 | -4/Garrison | Phase Generator disabled 10166 | -4/Garrison | Entered Factory 10166 | -4/Factory | Accompanied by 4 allies 10182 | -4/Factory | Identified exit to DSF 10277 | -4/Factory | Identified exit to Upper Caves 10277 | -4/Factory | Identified exit to Extension 10333 | -4/Factory | Fabricated W-44 Eye (x2) 10366 | -4/Factory | Entered Extension 10366 | -4/Extension | Accompanied by 4 allies 10469 | -4/Extension | Rescued a captive Derelict 10498 | -4/Extension | Rescued a captive Derelict 10511 | -4/Extension | Rescued a captive Derelict 10522 | -4/Extension | Spotted B-86 Titan 10531 | -4/Extension | Destroyed B-86 Titan 10538 | -4/Extension | Spotted B-86 Titan 10542 | -4/Extension | Discovered exit to Research (range 11) 10551 | -4/Extension | Destroyed B-86 Titan 10589 | -4/Extension | Identified exit to Cetus 10589 | -4/Extension | Central database locked down 10638 | -4/Extension | Rescued a captive Derelict 10640 | -4/Extension | Rescued a captive Derelict 10669 | -4/Extension | Rescued a captive Derelict 10670 | -4/Extension | Rescued a captive Derelict 10683 | -4/Extension | Rescued a captive Derelict 10725 | -4/Extension | Rescued A7 10786 | -4/Extension | Discovered exit to Research (range 18) 10811 | -4/Extension | Rescued a captive Derelict 10812 | -4/Extension | Rescued a captive Derelict 10813 | -4/Extension | Rescued a captive Derelict 10874 | -4/Extension | Disrupted transfer network 10874 | -4/Extension | Entered Cetus 10874 | -4/Cetus | Accompanied by 14 allies (A7) 10879 | -4/Cetus | Acquired a Cetus Manufacturing Module code from A7 10879 | -4/Cetus | Spotted Cetus Guard 10879 | -4/Cetus | Spotted Cetus Guard 10882 | -4/Cetus | Destroyed Cetus Guard 10884 | -4/Cetus | Spotted Cetus Guard 10884 | -4/Cetus | Destroyed Cetus Guard 10884 | -4/Cetus | Spotted Cetus Guard 10892 | -4/Cetus | Destroyed Cetus Guard 10894 | -4/Cetus | Destroyed Cetus Guard 10942 | -4/Cetus | Escorted A7 to Cetus Mainframe 10945 | -4/Cetus | Started Cetus Manufacturing Module 10950 | -4/Cetus | Discovered new exit (range 19) 10959 | -4/Cetus | Spotted Cetus Guard 10960 | -4/Cetus | Spotted Cetus Guard 10963 | -4/Cetus | Spotted Cetus Guard 10964 | -4/Cetus | Destroyed Cetus Guard 10964 | -4/Cetus | Spotted Cetus Guard 10969 | -4/Cetus | Allies destroyed Cetus Guard 10969 | -4/Cetus | Destroyed Cetus Guard 10970 | -4/Cetus | Manufactured an Enhanced Grunt 10978 | -4/Cetus | Allies destroyed Cetus Guard 10981 | -4/Cetus | Discovered exit to Research (range 19) 10986 | -4/Cetus | Met Revision 17 10995 | -4/Cetus | Manufactured an Enhanced Grunt 11016 | -4/Cetus | Identified exit to Archives 11020 | -4/Cetus | Manufactured an Enhanced Grunt 11041 | -4/Cetus | Entered Archives 11041 | -4/Archives | Accompanied by 14 allies (A7) 11043 | -4/Archives | Reached level 28 11046 | -4/Archives | Received a hacking code to weaken MAIN.C 11066 | -4/Archives | Discovered new exit (range 18) 11092 | -4/Archives | Lost 4 allies 11094 | -4/Archives | Unable to access archive contents 11103 | -4/Archives | Discovered new exit (range 18) 11120 | -4/Archives | Discovered exit to Research (range 19) 11154 | -4/Archives | Identified exit to Hub_04(d) 11416 | -4/Archives | Entered Hub_04(d) 11416 | -4/Hub_04(d) | Accompanied by 9 allies 11496 | -4/Hub_04(d) | Discovered exit to Research (range 10) 11550 | -4/Hub_04(d) | Lost 3 allies 11588 | -4/Hub_04(d) | Discovered exit to Research (range 8) 11635 | -4/Hub_04(d) | Spotted B-86 Titan 11645 | -4/Hub_04(d) | Destroyed B-86 Titan 11657 | -4/Hub_04(d) | Identified exit to Garrison 11744 | -4/Hub_04(d) | Central database locked down 11768 | -4/Hub_04(d) | Discovered exit to Research (range 10) 11883 | -4/Hub_04(d) | Identified exit to Garrison 11929 | -4/Hub_04(d) | Network Hub disabled 11957 | -4/Hub_04(d) | Disrupted transfer network 11973 | -4/Hub_04(d) | Network Hub disabled 11977 | -4/Hub_04(d) | Spotted Lightning 12031 | -4/Hub_04(d) | Network Hub disabled 12031 | -4/Hub_04(d) | Spotted Lightning 12031 | -4/Hub_04(d) | Spotted Lightning 12031 | -4/Hub_04(d) | Spotted Lightning 12047 | -4/Hub_04(d) | Network Hub disabled 12059 | -4/Hub_04(d) | Spotted Lightning 12059 | -4/Hub_04(d) | Spotted Lightning 12064 | -4/Hub_04(d) | Entered Research 12066 | -3/Research | Identified exit to Armory 12066 | -3/Research | Identified exit to Quarantine 12066 | -3/Research | Identified exit to Research 12091 | -3/Research | Spotted B-86 Titan 12095 | -3/Research | Destroyed B-86 Titan 12238 | -3/Research | Reached level 29 12238 | -3/Research | Upgraded with Utility slot (x1) 12259 | -3/Research | Fabricated Quantum Rifle (x2) 12264 | -3/Research | Revision forces began assault on 0b10 12412 | -3/Research | Fabricated Lgt. Quantum Reactor (x2) 12511 | -3/Research | Met up with Revision 17++ 12564 | -3/Research | Spotted B-86 Titan 12564 | -3/Research | Destroyed B-86 Titan 12605 | -3/Research | Found Heavy Servo Lattice 12764 | -3/Research | Research terminal network offline 12800 | -3/Research | Entered Quarantine 12952 | -3/Quarantine | Found Prototype Device 12952 | -3/Quarantine | Identified Adv. EM Disruption Field 13108 | -3/Quarantine | Garrison activated, responded to threat 13110 | -3/Quarantine | Reached level 30 13128 | -3/Quarantine | Found Alien Artifact 13192 | -3/Quarantine | Identified Core Reset Matrix 13251 | -3/Quarantine | Found Alien Artifact 13255 | -3/Quarantine | Found Alien Artifact 13258 | -3/Quarantine | Found Alien Artifact 13275 | -3/Quarantine | Identified Dimensional Node Initializer 13275 | -3/Quarantine | Identified Hpw. Transdimensional Reconstructor (x2) 13298 | -3/Quarantine | Found Alien Artifact 13325 | -3/Quarantine | Identified Transdimensional Reconstructor 13480 | -3/Quarantine | Found Alien Energy Cannon 13544 | -3/Quarantine | Identified Core Cannon 13692 | -3/Quarantine | Found Transdimensional Reconstructor 13697 | -3/Quarantine | Found Dimensional Node Initializer 13697 | -3/Quarantine | Initialized slip node 13699 | -3/Quarantine | Found Dimensional Node Initializer 13699 | -3/Quarantine | Initialized slip node 13700 | -3/Quarantine | Warped through subspace to slip node 13722 | -3/Quarantine | Warped through subspace to slip node 13724 | -3/Quarantine | Warped through subspace to slip node 13810 | -3/Quarantine | Entered Research 13810 | -2/Research | Warlord forces began assault on 0b10 13811 | -2/Research | Identified exit to Testing 13847 | -2/Research | Reached level 31 13847 | -2/Research | Met up with Warlord 13847 | -2/Research | Upgraded with Weapon slot (x1) 13915 | -2/Research | Discovered new exit (range 16) 13920 | -2/Research | Research machine network offline 13941 | -2/Research | Discovered exit to Testing (range 14) 13941 | -2/Research | Identified exit to Access 14139 | -2/Research | Entered Testing 14191 | -2/Testing | Spotted PP-V1CTKTLL37 14255 | -2/Testing | Found Prototype Energy Cannon 14345 | -2/Testing | Spotted Striker 14346 | -2/Testing | Spotted Striker 14430 | -2/Testing | Found Prototype Device 14430 | -2/Testing | Identified Thermal Barrier 14445 | -2/Testing | Found Prototype Device 14445 | -2/Testing | Identified Exp. Hardlight Generator 14642 | -2/Testing | Fabricated Exp. Force Field (x1) 14685 | -2/Testing | Identified Hpw. Disruptor Cannon 14859 | -2/Testing | Fabricated Adv. Powered Armor (x1) 15009 | -2/Testing | Found Prototype Energy Cannon 15195 | -2/Testing | Identified Potential Cannon 15224 | -2/Testing | Spotted Fortress 15343 | -2/Testing | Reached level 32 15343 | -2/Testing | Destroyed Fortress 15620 | -2/Testing | Discovered new exit (range 6) 15623 | -2/Testing | Identified exit to Section 7 15623 | -2/Testing | Entered Section 7 15673 | -2/Section 7 | Identified exit to Garrison 15677 | -2/Section 7 | Initialized slip node 15693 | -2/Section 7 | Found Alien Artifact 15728 | -2/Section 7 | Spotted B-90 Cyclops 15764 | -2/Section 7 | Destroyed B-90 Cyclops 15922 | -2/Section 7 | Found Alien Artifact 15957 | -2/Section 7 | Identified Integrated Dissipator (x2) 15958 | -2/Section 7 | Installed Integrated Dissipator, increased core heat dissipation (+20) 15960 | -2/Section 7 | Installed Integrated Dissipator, increased core heat dissipation (+20) 16073 | -2/Section 7 | Found Alien Artifact 16123 | -2/Section 7 | Spotted S7 Guard 16125 | -2/Section 7 | Destroyed S7 Guard 16166 | -2/Section 7 | First assault squad dispatched 16170 | -2/Section 7 | Destroyed 10 combat bots 16192 | -2/Section 7 | Central database locked down 16241 | -2/Section 7 | Found Alien Artifact 16349 | -2/Section 7 | Identified Core Physics Calibrator 16349 | -2/Section 7 | Identified Integrated Reactor 16351 | -2/Section 7 | Installed Integrated Reactor, increased core energy generation (+10) 16367 | -2/Section 7 | Reached level 33 16588 | -2/Section 7 | Spotted Alpha 7 16589 | -2/Section 7 | Spotted Alpha 7 16603 | -2/Section 7 | Destroyed Alpha 7 16623 | -2/Section 7 | Destroyed Alpha 7 16644 | -2/Section 7 | Found Prototype Processor 16644 | -2/Section 7 | Identified Exp. Target Analyzer 16647 | -2/Section 7 | Found Prototype Device 16647 | -2/Section 7 | Identified Exp. ECM Suite 16670 | -2/Section 7 | Spotted Executioner 16671 | -2/Section 7 | Spotted Executioner 16677 | -2/Section 7 | Destroyed Executioner 16696 | -2/Section 7 | Destroyed Executioner 16741 | -2/Section 7 | Found Transdimensional Reconstructor 16749 | -2/Section 7 | Found Alien Artifact 16749 | -2/Section 7 | Identified Terrabomb 16749 | -2/Section 7 | Used Terrabomb 16761 | -2/Section 7 | Found Transdimensional Reconstructor 16783 | -2/Section 7 | Spotted Striker 16783 | -2/Section 7 | Spotted Striker 16857 | -2/Section 7 | Spotted B-99 Colossus 16881 | -2/Section 7 | Found Alien Artifact 16881 | -2/Section 7 | Identified Integrity Redistributor 16881 | -2/Section 7 | Used Integrity Redistributor, redistributed integrity from core (-0) 16883 | -2/Section 7 | Found Integrity Redistributor 16908 | -2/Section 7 | Found Alien Artifact 16908 | -2/Section 7 | Identified LRC Inertial Stabilizer 16908 | -2/Section 7 | Installed LRC Inertial Stabilizer, increased mass support (+10) 16912 | -2/Section 7 | Found Alien Artifact 16912 | -2/Section 7 | Identified LRC Armor 16912 | -2/Section 7 | Installed LRC Armor, increased core integrity (+250) 16915 | -2/Section 7 | Found Alien Artifact 16915 | -2/Section 7 | Identified LRC Energy Well 16915 | -2/Section 7 | Installed LRC Energy Well, increased energy storage capacity (+250) 16945 | -2/Section 7 | Found Integrated Reactor 16945 | -2/Section 7 | Installed Integrated Reactor, increased core energy generation (+10) 17063 | -2/Section 7 | Scanned by Researcher 17064 | -2/Section 7 | Intercept squad dispatched 17078 | -2/Section 7 | Spotted Tracker 17079 | -2/Section 7 | Warped through subspace to slip node 17093 | -2/Section 7 | Spotted Tracker 17093 | -2/Section 7 | Destroyed Tracker 17101 | -2/Section 7 | Destroyed Tracker 17223 | -2/Section 7 | Found Alien Artifact 17223 | -2/Section 7 | Identified Microwarp Drive 17286 | -2/Section 7 | Entered Garrison 17297 | -2/Garrison | Discovered exit to Access (range 64) 17297 | -2/Garrison | Discovered exit to Access (range 66) 17297 | -2/Garrison | Discovered exit to Access (range 45) 17297 | -2/Garrison | Learned Access security intel 17320 | -2/Garrison | Expanded RIF knowledge: Program Shield 17354 | -2/Garrison | Learned Access security intel 17358 | -2/Garrison | Phase Generator disabled 17392 | -2/Garrison | Garrison Relay disabled 17403 | -2/Garrison | Spotted B-90 Cyclops 17411 | -2/Garrison | Destroyed B-90 Cyclops 17426 | -2/Garrison | Triggered checkpoint 17433 | -2/Garrison | Triggered checkpoint 17566 | -2/Garrison | Rescued a captive Derelict 17566 | -2/Garrison | Rescued a captive Derelict 17604 | -2/Garrison | Triggered checkpoint 17633 | -2/Garrison | Garrison Relay disabled 17634 | -2/Garrison | Triggered checkpoint 17723 | -2/Garrison | Entered Access 17723 | -1/Access | Accompanied by 2 allies 17725 | -1/Access | Reached level 34 17726 | -1/Access | Upgraded with Utility slot (x1) 17802 | -1/Access | Identified exit to Surface 17872 | -1/Access | Identified exit to Command 18022 | -1/Access | Found Prototype Protection 18022 | -1/Access | Identified Centrium Heavy Armor Plating 18082 | -1/Access | Fabricated X-87 Electro (x2) 18169 | -1/Access | Fabricated Particle Accelerator (x1) 18186 | -1/Access | Reached level 35 18223 | -1/Access | First assault squad dispatched 18246 | -1/Access | Intercept squad dispatched 18249 | -1/Access | Spotted Tracker 18249 | -1/Access | Spotted Tracker 18256 | -1/Access | Spotted Combat Programmer 18256 | -1/Access | Allies destroyed Tracker 18260 | -1/Access | Destroyed Tracker 18264 | -1/Access | Destroyed Combat Programmer 18313 | -1/Access | Spotted Combat Programmer 18317 | -1/Access | Destroyed Combat Programmer 18555 | -1/Access | Destroyed 9 combat bots 18562 | -1/Access | Intercept squad dispatched 18578 | -1/Access | Spotted Tracker 18579 | -1/Access | Spotted Tracker 18579 | -1/Access | Spotted Tracker 18595 | -1/Access | Destroyed Tracker 18600 | -1/Access | Destroyed Tracker 18600 | -1/Access | Destroyed Tracker 18621 | -1/Access | Spotted Combat Programmer 18622 | -1/Access | Spotted Combat Programmer 18624 | -1/Access | Spotted Combat Programmer 18626 | -1/Access | Destroyed Combat Programmer 18630 | -1/Access | Destroyed Combat Programmer 18638 | -1/Access | Destroyed Combat Programmer 18883 | -1/Access | Reached level 36 18922 | -1/Access | Upgraded with Utility slot (x1) 18939 | -1/Access | Destroyed 7 combat bots 19019 | -1/Access | Maximum security lockdown engaged 19161 | -1/Access | Entered Command 19460 | -1/Command | First assault squad dispatched 19476 | -1/Command | Disengaged cave seal 19476 | -1/Command | Derelicts emerged from the dark tunnel 19479 | -1/Command | Welcomed Warlord to Command 19514 | -1/Command | Disengaged cave seal 19514 | -1/Command | Derelicts emerged from the dark tunnel 19587 | -1/Command | Lost 5 allies 19691 | -1/Command | Repaired Broken Imp. System Restoration Module 19769 | -1/Command | Reached level 37 19773 | -1/Command | Upgraded with Weapon slot (x1) 19857 | -1/Command | Discovered exit to Surface (range 12) 19936 | -1/Command | P-80 Master assimilated allied 1I-KBM(i) 19962 | -1/Command | Lost 14 allies 19990 | -1/Command | Spotted M Guard 19990 | -1/Command | Spotted M Guard 19992 | -1/Command | Spotted Combat Programmer 19992 | -1/Command | Spotted Combat Programmer 19995 | -1/Command | Combat Programmer assimilated allied PD-MSX(i) 19999 | -1/Command | Combat Programmer assimilated allied 7O-RV5(i) 20006 | -1/Command | Warlord commented on Warlord statues 20008 | -1/Command | Combat Programmer assimilated allied OZ-78D(L) 20010 | -1/Command | Spotted OZ-78D(L) 20020 | -1/Command | Combat Programmer assimilated allied A9-0NN(g) 20024 | -1/Command | Destroyed OZ-78D(L) 20028 | -1/Command | Destroyed M Guard 20050 | -1/Command | Destroyed Combat Programmer 20050 | -1/Command | All MAIN.C guards destroyed 20064 | -1/Command | Lost 11 allies 20094 | -1/Command | Found Prototype Device 20094 | -1/Command | Identified AEGIS Remote Shield 20224 | -1/Command | Met MAIN.C 20224 | -1/Command | Hacked MAIN.C using A7's code 20232 | -1/Command | 0b10 Conduit disabled 20253 | -1/Command | MAIN.C activated Command garrisons 20276 | *** | Establishing Free Derelict Territories! Last Messages --------------- 20259_ MAIN.C knocked back. 20260_ MAIN.C reaction time slowed by virus. 20262_ Blast Slug penetrates 0b10 Conduit. 20262_ Blast Slug penetrates MAIN.C. 20262_ MAIN.C reaction time slowed by virus. 20266_ Blast Slug penetrates MAIN.C. 20266_ MAIN.C suffers critical hit (Blast). 20266_ Blast Slug penetrates MAIN.C. 20268_ Slug penetrates 0b10 Conduit. 20268_ MAIN.C knocked back. 20269_ Knocked back. 20272_ Slug penetrates MAIN.C. 20272_ MAIN.C knocked back. 20272_ Blast Slug penetrates MAIN.C. 20272_ MAIN.C: "I hope you know you're still going to DIE HERE WITH ME!" 20272_ MAIN.C destroyed. ZY-L1N: Victory! Sure there's still lots to do, but without MAIN.C at the helm 0b10 doesn't stand a chance. We've got this... Map ----- +----------------------------------------------------+ | ?????????????????????????????????????????????????? | | ?????????????????????????????????????????????????? | | ?????????????????????????????????????????????????? | | ?????????????????????????????????????????????????? | | ?????????????????????????????????????????????????? | | ?????????????????????????????????????????????????? | | ?????????????????????????????????????????????????? | | ?????????????????????????????????????????????????? | | ?????????????????????????????????????????????????? | | ?????????????????????????????????????????????????? | | ?????????????????????????????????????????????????? | | ?????????????????????????????????????????????????? | | ?????????????????????????????????????????????????? | | ?????????????????????????????????????????????????? | | ?????????????????????????????????????????????????? | | ?????????????????????????????????????????????????? | | ?????????????????????????????????????????????????? | | ?????????????##############??????????????????????? | | ????????????? """" #??????????????????????? | | ????????????? "" #??????????????????????? | | ???????????? "" #######################? | | ?????????""""""" + #? | | ?????????" " + #? | | ???????????""" + #? | | ???????????"""" ################### #? | | ???????????"""" W @#?????????????????# #? | | ??????" ;#????????????????# ## | | ?????? ##????????????????# T# | | ??????? % ""#?????????????????#+++## | | ??????? """""" ""#?????????????????# ! | | ???????? """""""""""#?????????????????# | | ???????? " " " " #?????????????????# | | ???????? ???? " " " #?????????????????# | | ???????????????? " """" " #?????????????????# | | ?????????????????? """" #?????????????????# # | | ??????????????????? " #?????????????????###### | | ?????????????????? ? " #??????????????????????# | | ????????????????????????""???????????????????????# | | ?????????????????????????????????????????????????? | | ?????????????????????????????????????????????????? | | ?????????????????????????????????????????????????? | | ?????????????????????????????????????????????????? | | ?????????????????????????????????????????????????? | | ?????????????????????????????????????????????????? | | ?????????????????????????????????????????????????? | | ?????????????????????????????????????????????????? | | ?????????????????????????????????????????????????? | | ?????????????????????????????????????????????????? | | ?????????????????????????????????????????????????? | | ?????????????????????????????????????????????????? | +----------------------------------------------------+ Best States ------------- Heat Dissipation 161 Energy Generation 151 Energy Capacity 1818 Matter Stores 400 Matter Capacity 400 Sight Range 20 Robot Scan Range 30 Terrain Scan Range 16 Terrain Scan Density 410 Additional Mass Support 20 Armor Coverage 400 Resistance: KI 35 Resistance: TH 40 Resistance: EX 20 Resistance: EM 20 Resistance: I 20 Resistance: S 20 Resistance: P 20 Weapon Cycling 20 Phase Shifting 10 Evasion (%) 77 Target Analysis 10 Core Analysis 8 Recoil Reduction 1 Particle Charging 30 Kinecelleration 50 Offensive Hacking 44 Defensive Hacking 15 Relay Coupler Types 1 Relay Coupler Value 80 Authchip Count 2 Item Schematics ----------------- Arm. Huge Wheel | -7/Recycling | Hacked Hacking Suite | -5/Factory | Scanalyzed Imp. Phase Shifter | -4/Factory | Scanalyzed Imp. Weapon Cycler | -4/Factory | Scanalyzed Enh. Nova Cannon | -4/Extension | Hacked Quantum Reactor | -4/Extension | Hacked Adv. Reaction Control System | -4/Extension | Hacked Adv. Force Field | -4/Extension | Hacked Cmb. Linear Gravjet | -4/Hub_04(d) | Hacked Hvy. Disruptor Cannon | -4/Hub_04(d) | Hacked Quantum Capacitor | -4/Hub_04(d) | Hacked Centrium Leg | -3/Quarantine | Hacked Biometal Heavy Treads | -3/Quarantine | Hacked Particle Accelerator | -3/Quarantine | Archive Exp. Coolant Injector | -3/Quarantine | Archive Exp. Thermal Shield | -3/Quarantine | Archive Exp. Force Field | -3/Quarantine | Hacked Exp. Hacking Suite | -3/Quarantine | Hacked Adv. Variable Charge Gun | -3/Quarantine | Archive Exp. Field Recycling Unit | -3/Quarantine | Archive Proton Burst Cannon | -3/Quarantine | Archive Cld. Field Propulsion Drive | -3/Quarantine | Archive Hvy. Proton Missile Launcher | -3/Quarantine | Archive Imp. Matter Neutralizer | -3/Quarantine | Archive Energy Mantle | -3/Quarantine | Archive Hvy. Gatling Laser | -3/Quarantine | Archive Adv. EM Disruption Field | -3/Quarantine | Archive Exp. Q-thruster | -2/Testing | Archive Gui. Micro-nuke Launcher | -2/Testing | Archive Prc. Energy Filter | -2/Testing | Archive Hdn. Centrium Leg | -2/Testing | Archive Cld. Phase Gun | -2/Testing | Archive Exp. Biometal Medium Treads | -2/Testing | Hacked Adv. Powered Armor | -2/Testing | Hacked Graviton Cannon | -2/Testing | Archive Hdn. Centrium Heavy Treads | -2/Testing | Archive Prc. Matter Filter | -2/Section 7 | Archive Exp. Power Amplifier | -2/Section 7 | Archive Exp. Melee Analysis Suite | -2/Section 7 | Archive Enh. Force Rifle | -2/Section 7 | Archive Thermal Defense Suite | -2/Section 7 | Archive Diametric Drive | -2/Section 7 | Archive Exp. Phase Shifter | -2/Section 7 | Archive Adv. Remote Datajack | -1/Access | Scanalyzed Graphene Brace | -1/Access | Scanalyzed Imp. System Restoration Module | -1/Access | Scanalyzed Robot Schematics ------------------ G-50 Soldier | -5/Factory | Hacked R-10 Processor | -4/Hub_04(d) | Hacked B-74 Champion | -3/Quarantine | Hacked X-77 Beamer | -3/Quarantine | Archive E-15 Imp | -2/Testing | Archive C-65 Expert | -2/Testing | Archive K-01 Serf | -2/Testing | Hacked G-67 Veteran | -2/Section 7 | Archive A-02 Transporter | -2/Section 7 | Archive X-87 Electro | -1/Access | Hacked Fabricated ------------ Antigrav Array | x1 | -5/Factory | Preloaded G-50 Soldier | x3 | -5/Factory G-50 Soldier | x3 | -5/Factory G-50 Soldier | x3 | -4/Factory W-44 Eye | x2 | -4/Factory | Preloaded Quantum Rifle | x2 | -3/Research | Preloaded Lgt. Quantum Reactor | x2 | -3/Research | Preloaded Exp. Force Field | x1 | -2/Testing Adv. Powered Armor | x1 | -2/Testing X-87 Electro | x2 | -1/Access | Authchip Particle Accelerator | x1 | -1/Access Alien Tech Used ----------------- Dimensional Node Initializer Transdimensional Reconstructor High-powered Transdimensional Reconstructor Integrated Dissipator Core Physics Calibrator Integrated Reactor Terrabomb Integrity Redistributor LRC Inertial Stabilizer LRC Armor LRC Energy Well Microwarp Drive Achievements -------------- Shutout Challenges ------------ None RPGLIKE | -11 -10 -10 -10 -7 -5 -5 -5 -5 -5 -5 -4 -4 -4 -4 -4 -4 -4 -4 -3 -3 -2 -2 -2 -2 -1 -1 --------- Run | Yrd Mat Min Sub Rec Fac Gar Fac Upp Upp War Pro Fac Gar Fac Ext Cet Arc Hub Res Qua Res Tes Sec Gar Acc Com Levels Raised 36 | . 1 2 . 4 10 2 2 . 1 1 1 1 1 . . . 1 . 1 1 1 1 1 . 3 1 XP Earned 59338 | 4000 2240 2285 1397 6009 13601 4383 2361 520 220 2440 750 1764 1321 68 716 350 172 544 1586 1042 1710 1049 2022 588 3756 2444 XP Spent 57275 | 3985 1500 2760 130 6100 14525 3500 1400 . 2300 2200 . . 4450 . . . . . 3125 1500 1400 . . . 6700 1700 Upgrades 98 | 19 3 10 1 6 35 7 1 . 1 3 . . 5 . . . . . 2 1 1 . . . 2 1 Power Slot 2 | . . . . . 2 . . . . . . . . . . . . . . . . . . . . . Propulsion Slot 4 | 1 . . . 1 1 . 1 . . . . . . . . . . . . . . . . . . . Utility Slot 11 | 1 . 1 . 3 1 . . . 1 . . . 1 . . . . . 1 . . . . . 2 . Weapon Slot 5 | 1 . 1 . . 1 . . . . . . . . . . . . . . . 1 . . . . 1 Core Integrity 9 | . . 4 . . 5 . . . . . . . . . . . . . . . . . . . . . Heat Dissipation 16 | 2 . . . . 9 4 . . . 1 . . . . . . . . . . . . . . . . Energy Generation 1 | 1 . . . . . . . . . . . . . . . . . . . . . . . . . . Energy Storage 2 | 1 . . . . 1 . . . . . . . . . . . . . . . . . . . . . Matter Storage 2 | 1 . . . . . . . . . . . . . . . . . . 1 . . . . . . . Mass Support 3 | 1 . . . . 1 . . . . 1 . . . . . . . . . . . . . . . . Inventory Capacity 6 | . 3 . . . . 1 . . . . . . 1 . . . . . . 1 . . . . . . Sight Range 3 | 2 . . . . 1 . . . . . . . . . . . . . . . . . . . . . Sensor Range 8 | 3 . . . . 2 . . . . . . . 3 . . . . . . . . . . . . . Terrain Scan Density 4 | 2 . . 1 . 1 . . . . . . . . . . . . . . . . . . . . . Ranged Accuracy 4 | 1 . . . . 3 . . . . . . . . . . . . . . . . . . . . . Hack Attack % 4 | 1 . . . . 3 . . . . . . . . . . . . . . . . . . . . . Hack Defense % 3 | 1 . . . . 2 . . . . . . . . . . . . . . . . . . . . . KI Resistance % 3 | . . 2 . 1 . . . . . . . . . . . . . . . . . . . . . . TH Resistance % 4 | . . 2 . 1 . . . . . 1 . . . . . . . . . . . . . . . . KI Damage % 1 | . . . . . 1 . . . . . . . . . . . . . . . . . . . . . TH Damage % 3 | . . . . . 1 2 . . . . . . . . . . . . . . . . . . . . Protomatter Created 10168 | . 94 47 289 117 51 786 485 104 . 1182 172 269 629 . 561 193 . 656 306 480 224 206 1255 351 1230 481 Integrity Restored 10588 | . 131 318 630 176 100 997 205 141 . 1295 94 345 630 . 411 160 4 192 522 195 241 399 1570 183 923 726 Core 8104 | . 108 318 409 132 76 707 167 129 . 912 74 286 508 . 346 128 . 151 447 152 232 324 1096 130 662 610 Parts 2484 | . 23 . 221 44 24 290 38 12 . 383 20 59 122 . 65 32 4 41 75 43 9 75 474 53 261 116 Protomatter Decayed 11115 | . 15 58 157 53 17 394 398 57 . 837 139 213 380 71 559 223 226 605 1888 347 942 333 651 222 1031 1299 Game ------ Seed CombatDroneConstruct Manual? 0 Play Time 05:37:06 Cumulative 397.8 hours Start 2024.05.13 @ 20:06:06 End 2024.05.14 @ 01:54:38 Sessions 1 Manual Loads 0 Difficulty Adventurer Special Mode Winter2019/RPGLIKE Game No. 68 Rogue 13 Adventurer 50 Explorer 5 Win Type 7 Total 22 Types 9/0/5/4/1/0/1/2/0 Lore% 81 Gallery% 85 Achievement% 78 Wizard Run 0 Options --------- Layout 0 ASCII 0 Keyboard 0 Movement Numpad Keybinds 0 Fullscreen 1 Font 24/Smallcaps Map View 76x50 Zoom Use 0% Tactical HUD 1 Map Filters NONE Filters NONE Steam 1 RUN: 71fd76b1-c198-4d89-b01c-808e2ee3f456